Workbook

Sheet Title III Budget
M1: Place an "X" by the applicable response.
D2: Virginia Department of Education | M2: X | N2: Original
D3: Office of Program Administration and Accountability
D4: P. O. Box 2120 | N4: Revision:
D5: Richmond, Virginia 23218-2120 | N5: Revision #
N6: Date:
F7: A. COVER PAGE | N7: Explain
D8: Title III, Part A, Language Instruction for English Learners and Immigrant Students | N8: Amendment:
E9: 2018-2019 Individual Program Application | N9: Amendment #
E10: Due by July 1, 2018 | N10: Date:
D11: Elementary and Secondary Education Act of 1965 (ESEA), as amended by | N11: Explain
D12: the Every Student Succeeds Act of 2015 (ESSA), Public Law 114-95
A13: To be Completed by School Division
A14: Applicant (Legal Name of Agency) | H14: Division | J14: Title III Coordinator
A15: ALBEMARLE COUNTY PUBLIC SCHOOLS | H15: Number | I15: =IF(ISBLANK(A15)," ",VLOOKUP(A15,Prefills!A2:B147,2)) -> 2 | J15: Cyndi Wells
A16: Mailing Address (Street, City or Town, Zip Code) | H16: Phone: | J16: 434-296-6517 | M16: Ext: | N16: 50561
A17: 401 McIntire Road Charlottesville, VA 22902 | H17: Email:
H18: cwells@k12albemarle.org
A20: 2018-2019 Title III, Part A Allocation | E20: =SUM(J20)+SUM(O20) -> 106525.11 | G20: EL Award Amount | J20: 106525.11 | L20: I/Y Award Amount:
E22: If checked, the division is the Consortium Lead School Division.
C23: If checked, divisions must complete the "Immigrant Children and Youth" tab, in red, to describe the Immigrant Children and Youth (IY) Program, after allocations are released.
A24: LOCAL EDUCATIONAL AGENCY CERTIFICATION
A25: Use of Funds: The applicant designated above applies for an allocation of federal assistance as appropriated under ESEA. Funds are available to support local education reform efforts that are consistent with statewide education reform efforts to: 1) provide funding to implement promising education reform programs and school improvement programs based on evidence-based research; 2) provide a continuing source of innovative and educational improvement; 3) meet the educational needs of all students; and 4) develop and implement education programs to improve student achievement and teacher performance. Specific uses of funds for this application are found in the "Guidelines, Instructions, and Assurances" document.
A27: Assurances: The local educational agency assures that the Title III, Part A, program will be administered and implemented in compliance with all applicable statutes, regulations, policies, program plans, and applications. Additionally, the local educational agency agrees by signing below to implement the general and program specific assurances located in the “Application Guidelines, Instructions, and Assurances” document. The assurances and signed cover page are to be retained at the division level.
A29: Certification: We hereby certify that, to the best of our knowledge, the information contained in this application is correct. The agency named above has authorized us as its representatives to file this application, and such action is recorded in the minutes of the School Board meeting held
A30: on | B30: 2018-06-14 | E30: .
A33: Superintendent’s Signature | H33: Board Chairperson’s Signature
A34: Dr. Pamela Moran | H34: Dr. Katherine acuff
A35: Superintendent’s Name | H35: Board Chairperson’s Name
A36: 2018-06-14 | H36: 2018-06-14
A37: Date | H37: Date
A38: Application Submission, Approval, and LEA Expenditure of Funds: Applications for Federal Funds are due by July 1, 2018. Revisions and Amendments should be submitted in a timely manner. Please note, in order for the funds to be expendable by July 1, 2018, the electronic application must be received at the Virginia Department of Education by July 1, 2018, through the file submission process of the Online Management of Education Grant Awards (OMEGA) system.
A39: An Award Notification is issued by the Virginia Department of Education through OMEGA once an application is fully approved and the allocation is available.
A41: Page 1
E42: School Division: | G42: =$A$15 -> ALBEMARLE COUNTY PUBLIC SCHOOLS | M42: Division Number: | P42: =$I$15 -> 2
A43: APPLICATION INFORMATION
A44: 2017 - 2018 | C44: 2017-2018 | E44: PROGRAM | N44: 2018-2019 | Q44: Does allocation total match total in Cell E22?
A45: Allocation | C45: Consolidated Yes or No | N45: Allocation Total
A46: =IF(ISBLANK($A$15)," ",VLOOKUP($I$15,Prefills!$AT$3:$AW$142,4)) -> 117430.67 | C46: No | E46: Title III, Part A, English Learners: (Total of: a + c; b + c; only a; or only c) | N46: =SUM(K47:M49) -> 106525.11 | Q46: =IF(SUM(N46)=SUM(E20),"Yes","No, check subtotals in this section") -> Yes
E47: a. EL Subgrant: Not part of a consortium | J47: Subtotal | K47: 106525.11 | T47: Yes | U47: No
E48: b. EL Subgrant: Consortium Lead Total of all consortium member allocations | J48: Subtotal
E49: c. Immigrant Children and Youth Subgrant: | J49: Subtotal
A52: TRANSFERABILITY
A53: Section 5103(b)(2) of the Every Student Succeeds Act allows LEAs to transfer funds between certain qualifying federal programs. If funds are transferred out of the Title II, Part A, or Title IV, Part A programs, PRIOR APPROVAL IS REQUIRED, and a separate Transferability approval form must be submitted. The transfer request form is available at
A54: http://www.doe.virginia.gov/federal_programs/esea/forms/lea_funds_transfer_request.docx.
A56: Program from which funds will be transferred | F56: Select program(s) TO which funds will be transferred: | N56: Amount
A57: Title II, Part A | E57: TO | F57: Title III, Part A, English Learners | N57: =SUM(L58:M60) -> 0
F58: a. EL Subgrant: Not part of a consortium | K58: Subtotal
F59: b. EL Subgrant: Consortium Lead Total of all consortium member allocations | K59: Subtotal
F60: c. Immigrant Children and Youth Subgrant: | K60: Subtotal
A62: Program from which funds will be transferred | F62: Select program(s) TO which funds will be transferred: | N62: Amount
A63: Title IV, Part A | E63: TO | F63: Title III, Part A, English Learners | N63: =SUM(L64:M66) -> 0
F64: a. EL Subgrant: Not part of a consortium | K64: Subtotal
F65: b. EL Subgrant: Consortium Lead Total of all consortium member allocations | K65: Subtotal
F66: c. Immigrant Children and Youth Subgrant: | K66: Subtotal
A68: Page 2
E69: School Division: | G69: =$A$15 -> ALBEMARLE COUNTY PUBLIC SCHOOLS | M69: Division Number: | P69: =$I$15 -> 2
A70: REVISIONS AND AMENDMENTS
A72: Place an "X" in the first box indicating whether it is a revision or amendment. Enter the date of the revision or amendment. Indicate the tab(s) that have been changed. Provide a concise description of changes (for example, "Programmatic Changes--purchase of additional reading materials, object code 6000; Budget Changes--decreased travel budget in object code 5000 and increased materials to purchase additional reading materials in object code 6000"). When completing an amendment, changes to the program overview may be reflected as additions at the end of the narrative. NOTE: Any changes to the program budget should first be reflected in an amended application, followed by a budget transfer within 7 business days of approval of the amended application. Budget transfers will not be accepted without an approved amended application reflecting budget changes.
A74: 1. | B74: Revision | F74: Date:
B75: Amendment | F75: Date:
A77: 2. | B77: Revision | F77: Date:
B78: Amendment | F78: Date:
A80: 3. | B80: Revision | F80: Date:
B81: Amendment | F81: Date:
A83: 4. | B83: Revision | F83: Date:
B84: Amendment | F84: Date:
A86: 5. | B86: Revision | F86: Date:
B87: Amendment | F87: Date:
A89: 6. | B89: Revision | F89: Date:
B90: Amendment | F90: Date:
A92: 7. | B92: Revision | F92: Date:
B93: Amendment | F93: Date:
A95: Page 3
E96: School Division: | G96: =$A$15 -> ALBEMARLE COUNTY PUBLIC SCHOOLS | M96: Division Number: | P96: =$I$15 -> 2
A97: B. BUDGET SUMMARY
A98: Title III, Part A
A99: Title III funds may be used to provide supplemental services that improve the English language proficiency and academic achievement of English Learners (ELs), including the provision of language instruction educational programs (LIEPs) and activities that increase the knowledge and skills of teachers who serve ELs. All services provided to ELs using Title III funds must supplement, and not supplant, the services that must be provided to ELs under Title VI of the Civil Rights Act of 1964 (Title VI), the Equal Educational Opportunities Act of 1974 (EEOA), and other requirements, including those under State or local laws.
A101: OBJECT CODE | B101: EXPENDITURE | G101: EL SUBGRANT | K101: IMMIGRANT CHILDREN & YOUTH (IY) SUBGRANT | O101: DOES BUDGET SUMMARY MATCH DETAIL BUDGET?
A102: 1000 - Personal Services | B102: Administration
B103: Teachers | G103: 22084
B104: Paraprofessionals | G104: 1800
B105: Other | G105: 34652
B106: Private School Set-Asides
B107: Total Personal Services | G107: =SUM(G102:J106) -> 58536 | K107: =SUM(K102:N106) -> 0 | O107: =IF(SUM(N166)=SUM(G107:N107),"Yes", "No, please review your entries.") -> Yes
A108: 2000 - Employee Benefits | B108: Fixed Charges (Administrative and Instruction) | G108: 20802
B109: Private School Set-Asides
B110: Total Employee Benefits | G110: =SUM(G108:J109) -> 20802 | K110: =SUM(K108:N109) -> 0 | O110: =IF(SUM(N182)=SUM(G110:N110),"Yes","No-please review your entries.") -> Yes
A111: 3000 - Purchased/ Contracted Services | B111: Supportive Services (Med., Dental)
B112: Evaluation Services
B113: Professional Development | G113: 2500
B114: Other | G114: 20500
B115: Private School Set-Asides
B116: Total Purchased/Contracted Services | G116: =SUM(G111:J115) -> 23000 | K116: =SUM(K111:N115) -> 0 | O116: =IF(SUM(N199+N215)=SUM(G116:N116),"Yes","No-please review your entries.") -> Yes
A117: 4000 - Internal Services | B117: Pupil Transportation | G117: 500
B118: Food Services
B119: Other
B120: Private School Set-Asides
B121: Total Internal Services | G121: =SUM(G117:J120) -> 500 | K121: =SUM(K117:N120) -> 0 | O121: =IF(SUM(N230)=SUM(G121:N121),"Yes","No-please review your entries.") -> Yes
A122: 5000 - Other Charges | B122: Travel (Staff/Administrative) | G122: 1000
B123: Maintenance of Plant
B124: Operation of Plant
B125: Indirect Cost
B126: Other
B127: Private School Set-Asides
B128: Total Other Charges | G128: =SUM(G122:J127) -> 1000 | K128: =SUM(K122:N127) -> 0 | O128: =IF(SUM(N249+N265)=SUM(G128:N128),"Yes","No-please review your entries.") -> Yes
A129: 6000 - Materials and Supplies | B129: Administrative
B130: Instructional | G130: 2687.11
B131: Private School Set-Asides
B132: Total Materials and Supplies | G132: =SUM(G129:J131) -> 2687.11 | K132: =SUM(K129:N131) -> 0 | O132: =IF(SUM(N289)=SUM(G132:N132),"Yes","No-please review your entries.") -> Yes
A133: 8000 - Capital Outlay | B133: Equipment for Instruction
B134: Buildings
B135: Remodeling
B136: All Other Equipment
B137: Private School Set-Asides
B138: Total Capital Outlay | G138: =SUM(G133:J137) -> 0 | K138: =SUM(K133:N137) -> 0 | O138: =IF(SUM(N307+N325)=SUM(G138:N138),"Yes","No-please review your entries.") -> Yes
B139: TOTAL SUBGRANT BUDGET | G139: =SUM(G138,G132,G128,G121,G116,G110,G107) -> 106525.11 | K139: =SUM(K138,K132,K128,K121,K116,K110,K107) -> 0
B140: TOTAL ALLOCATION | G140: =SUM(G139:N139) -> 106525.11 | K140: Does Total Allocation equal sum of detailed budget? | O140: =IF(SUM(G140)=SUM(N166+N182+N199+N215+N230+N249+N265+N289+N307+N325),"Yes","No -please review your entries.") -> Yes
B141: TOTAL PRIVATE SCHOOL SET-ASIDE | G141: =SUM(G106+G109+G115+G120+G127+G131+G137) -> 0 | K141: Does Private School Set-aside match calculated value on Private School Tab? | O141: =IF(SUM(G141)='Private Schools'!R67,"Yes","No, please review entries.") ->  | Q141: =IF(SUM(#REF!)=SUM(N166+N182+N199+N215+N230+N249+N265+N289+N307+N325),"Yes","No-please review your entries.") -> 
A144: Note: | B144: Object codes 7000 and 9000 are not used in application budgets or in requests for reimbursements for this federal grant.
A145: Note: | B145: Expenses for parental involvement programs are to be incorporated into the appropriate object code(s) based on the category of the related charges.
A147: Page 5
E148: School Division: | G148: =$A$15 -> ALBEMARLE COUNTY PUBLIC SCHOOLS | M148: Division Number: | P148: =$I$15 -> 2
A149: C. DETAILED BUDGET BREAKDOWN
A150: Include a detailed breakdown of the budget categories for Object Codes 1000-6000 and 8000, as shown on pages 4-5.
A152: DETAILED BUDGET DESCRIPTION OF OBJECT CODE 1000
A153: If applicable, indicate the positions and FTEs supported with funds from this program.
A154: The ESOL Data Specialist runs diagnostic reports on EL student data to determine professional development and program enhancement needs for ESOL students. The ESOL Family Engagement Liaison implements family engagement activities for ESOL families, collaborating with school personnel to form partnerships among families, schools, and communities to enhance ESOL instruction, e.g. by organizing ESOL-specific family nights. The ESOL Coach works one-on-one with ESOL and content teachers to improve instruction that combines language objectives with academic objectives. Tutors and teachers provide support to EL's as needed before and after school and during the summer. Substitutes will be provided so ESOL teachers may attend professional
A155: development opportunities. A part-time summer administrator will be hired to provide oversight and organization of the Summer Immersion Excursion program, which is described in the IY section of the application.
A156: Item Description | I156: Funding Source | L156: FTEs | N156: Total Cost
A157: ESOL Data Specialist | I157: EL Subgrant | L157: 0.3 | N157: 12520
A158: ESOL Family Engagement Liaison | I158: EL Subgrant | L158: 0.5 | N158: 22132
A159: ESOL Coach | I159: EL Subgrant | L159: 0.3 | N159: 17084
A160: ESOL Tutors [$25 per hour] | I160: EL Subgrant | L160: NA | N160: 1000
A161: Substitutes | I161: EL Subgrant | L161: NA | N161: 800
A162: Hourly Teacher Wages, after contract hours: Tutoring, Instruction,
A163: Family Engagement in summer & after school; Summer administrator | I163: EL Subgrant | L163: NA | N163: 5000
I166: Total for Object Code: | L166: =SUM(L157:M165) -> 1.1 | N166: =SUM(N157:P165) -> 58536
A169: DETAILED BUDGET DESCRIPTION OF OBJECT CODE 2000
A170: Indicate the fixed charge categories (such as FICA, health, etc.) and specify the amount of each.
A171: Fringe benefits which consist of FICA, VSRS, Group Life, Health Insurance, and Dental Insurance will be paid on the FTE positions, where applicable. FICA will be paid for tutors, subs, and part-time staff.
A173: Item Description | K173: Funding Source | N173: Total Cost
A174: FICA | K174: EL Subgrant | N174: 4478
A175: Health Insurance [8,278 per 1.0 FTE] | K175: EL Subgrant | N175: 6622
A176: Dental Insurance [296 per 1.0 FTE] | K176: EL Subgrant | N176: 237
A177: VSRS | K177: EL Subgrant | N177: 8783
A178: Group Life Insurance | K178: EL Subgrant | N178: 682
K182: Total for Object Code: | N182: =SUM(N174:P181) -> 20802
A184: Page 6
E185: School Division: | G185: =$A$15 -> ALBEMARLE COUNTY PUBLIC SCHOOLS | M185: Division Number: | P185: =$I$15 -> 2
A186: JUSTIFICATION FOR PROFESSIONAL DEVELOPMENT - OBJECT CODE 3000
A187: If program funds are expended for professional development, justify such expenditures by demonstrating a relationship between the proposed expenditure for professional development and the program services and activities described in the application. Please indicate how these funds will support any services and activities that are described in this application.
A188: The ESOL Program will support professional development opportunities for both ESOL teachers and their collaborative classroom partners to learn and implement strategies that support language and content learning in the Tier I classroom environment. For the past three years, ACPS teachers have been working with ExC-ELL strategies and we will continue to expand the number of teachers who implement these strategies with fidelity. Professional Development offerings may also include Family Reunification
A189: Trainer Training, to support strengthening EL families through reunification programs. ESOL teachers and Coordinator plan to attend La Cosecha Dual Language Conference to improve our support of ESOL students in the two-way immersion program. Program staff members may also attend meetings and conferences, such as VESA and TESOL.
A190: Item Description | K190: Funding Source | N190: Total Cost
A191: Professional Development | K191: EL Subgrant | N191: 2500
K199: Total for Object Code: | N199: =SUM(N191:P198) -> 2500
A202: DETAILED BUDGET DESCRIPTION OF OBJECT CODE 3000
A203: Provide a description of evaluation services or other expenses related to purchased or contracted services that are not related to the professional development detailed above.
A204: The ESOL program supports family engagement activities specifically targeted to ESOL families, and we find that providing food from local restaurants increases participation.
A205: A committee of ESOL teachers has developed a rubric by which we evaluate resources -- including Rosetta Stone® Language Lessons, Imagine Learning, and Middlebury Interactive products and/or services. These products have interactive, targeted exercises with a student account system that allows teachers to track a student's progress.
A206: Item Description | K206: Funding Source | N206: Total Cost
A207: Meals for Family Engagement Activities | K207: EL Subgrant | N207: 500
A208: Digital Learning, Web-based Resources for Language Instruction | K208: EL Subgrant | N208: 20000
K215: Total for Object Code: | N215: =SUM(N207:P214) -> 20500
A217: Page 7
E218: School Division: | G218: =$A$15 -> ALBEMARLE COUNTY PUBLIC SCHOOLS | M218: Division Number: | P218: =$I$15 -> 2
A219: JUSTIFICATION FOR INTERNAL SERVICES - OBJECT CODE 4000
A220: If program funds are expended for internal services, describe these services below.
A221: Some of our elementary schools provide after school and summer tutoring for EL students. We are able to increase student participation in tutoring by providing an ESOL bus to transport students. Transportation for parents and families to attend Parent Engagement activities and parent conferences may be provided also. Buses for summer field trips for EL students may also be needed.
A223: Item Description | K223: Funding Source | N223: Total Cost
A224: Bus Transportation costs for school tutoring programs, transportation assistance
A225: for Parental Engagementactivities, and for field trips during the summer | K225: EL Subgrant | N225: 500
K230: Total for Object Code: | N230: =SUM(N224:P229) -> 500
A233: JUSTIFICATION FOR TRAVEL COSTS - OBJECT CODE 5000
A234: Travel must be justified by demonstrating a relationship between the proposed travel and the needs of the program. Please indicate the estimated cost and the estimated number of people attending.
A235: In addition to the professional development opportunities described in Object Code 3000, above, professional development opportunities may also include conference attendance by teachers and administrators to keep abreast of current program requirements, to collaborate with other professionals, and to enhance program services such as Family Engagement. Professional association meetings are also included among professional development options. Expenses related to these programs, meetings, and conferences may include registration, travel, and mileage costs.
A237: Item Description | K237: Funding Source | N237: Total Cost
A238: Conference, Training and Professional Meeting Expenses | K238: EL Subgrant | N238: 1000
K249: Total for Object Code: | N249: =SUM(N238:P248) -> 1000
A250: Page 8
E251: School Division: | G251: =$A$15 -> ALBEMARLE COUNTY PUBLIC SCHOOLS | M251: Division Number: | P251: =$I$15 -> 2
A252: DETAILED BUDGET DESCRIPTION FOR OBJECT CODE 5000
A253: If applicable, indicate indirect costs charged to this program. Indirect costs cannot be claimed against capital outlay and equipment.
A256: Item Description | K256: Funding Source | N256: Total Cost
K265: Total for Object Code: | N265: =SUM(N257:P264) -> 0
A268: JUSTIFICATION FOR MATERIALS AND SUPPLIES - OBJECT CODE 6000
A269: Provide a description of materials, supplies, and all equipment less $5,000 per unit. Indicate the estimated quantity of each item.
A270: The ESOL program supports Family Engagement activities specifically targeted to ESOL families, and these funds will allow us to purchase take-home instructional materials and supplies such as books and educational games. Snacks and grocery items may also be needed for Family Engagement activities, including meetings of staff who plan these activities.
A271: Instructional materials and books to enhance student instruction, including newcomer materials, will be funded. These will be purchased through varying vendors, including Saddleback Publishing., Heinemann, and Amazon. Additional purchases of Praxis Study Guides for teachers seeking ESOL endorsement are planned.
A272: Item Description | I272: Funding Source | L272: Quantities | N272: Total Cost
A273: Parent Outreach Supplies to support instruction | I273: EL Subgrant | N273: 100
A274: Instructional books, materials and equipment for EL instructional | I274: EL Subgrant | N274: 2587.11
A275: support
I289: Total for Object Code: | L289: =SUM(L273:M288) -> 0 | N289: =SUM(N273:P288) -> 2687.11
A290: Page 9
E291: School Division: | G291: =$A$15 -> ALBEMARLE COUNTY PUBLIC SCHOOLS | M291: Division Number: | P291: =$I$15 -> 2
A292: JUSTIFICATION FOR CAPITAL OUTLAY - OBJECT CODE 8000
A293: All capital outlay expenditures over $5,000 per unit must be approved in advance by the Department of Education. If the school division has established a threshold of a lesser amount, items equal to that amount or greater must also receive prior approval by the Department of Education. Equipment quantities must be specified.
A296: Item Description | I296: Funding Source | L296: Quantities | N296: Total Cost
... 27 more rows

Sheet Prefills (hidden)
A1: Name | B1: Code | I1: INNOVATIVE ASSISTANCE PROGRAM AREAS | U1: Yes | W1: Yes | Z1: Title I A | AD1: Title I C | AH1: Title ID | AL1: Title IIA | AP1: Title IID | AT1: Title III | AX1: Title IV | BB1: Title V | BF1: Title VI
A2: ACCOMACK COUNTY PUBLIC SCHOOLS | B2: 1 | U2: No | W2: No | Z2: Payee | AA2: ProjectGroupID | AB2: CONoSOLIDATED_APP_FLAG | AC2: Allocation | AD2: Payee | AE2: ProjectGroupID | AF2: CONoSOLIDATED_APP_FLAG | AG2: Allocation | AH2: Payee | AI2: ProjectGroupID | AJ2: CONoSOLIDATED_APP_FLAG | AK2: Allocation | AL2: Payee | AM2: ProjectGroupID | AN2: CONoSOLIDATED_APP_FLAG | AO2: Allocation | AP2: Payee | AQ2: ProjectGroupID | AR2: CONoSOLIDATED_APP_FLAG | AS2: Allocation | AT2: Payee | AU2: ProjectGroupID | AV2: CONoSOLIDATED_APP_FLAG | AW2: Allocation | AX2: Payee | AY2: ProjectGroupID | AZ2: CONoSOLIDATED_APP_FLAG | BA2: Allocation | BB2: Payee | BC2: ProjectGroupID | BD2: CONoSOLIDATED_APP_FLAG | BE2: Allocation | BF2: Payee | BG2: ProjectGroupID | BH2: CONoSOLIDATED_APP_FLAG | BI2: Allocation
A3: ALBEMARLE COUNTY PUBLIC SCHOOLS | B3: 2 | W3: Shared Services Only | Z3: 1 | AA3: 1 | AB3: Yes | AC3: 1786364.85 | AD3: 1 | AE3: 2 | AF3: Yes | AG3: 274686.67 | AH3: 1 | AI3: 3 | AJ3: Yes | AL3: 1 | AM3: 4 | AN3: Yes | AO3: 291765.79 | AT3: 1 | AU3: 6 | AV3: Yes | AW3: 85903.67 | BF3: 1 | BG3: 9 | BH3: Yes | BI3: 94384.84
A4: ALEXANDRIA CITY PUBLIC SCHOOLS | B4: 101 | H4: 1. | I4: 1. Recruiting, training, and hiring highly qualified teachers to reduce class size | Z4: 2 | AA4: 1 | AB4: No | AC4: 1442772.07 | AD4: 2 | AE4: 2 | AF4: No | AG4: 84026.79 | AH4: 2 | AI4: 3 | AJ4: No | AL4: 2 | AM4: 4 | AN4: No | AO4: 316179.34 | AT4: 2 | AU4: 6 | AV4: No | AW4: 117430.67 | BF4: 2 | BG4: 9 | BH4: No
A5: ALLEGHANY COUNTY PUBLIC SCHOOLS | B5: 3 | H5: 2. | I5: 2. Technology activities, including professional development | Z5: 3 | AA5: 1 | AB5: Yes | AC5: 483805.33 | AD5: 3 | AE5: 2 | AF5: Yes | AH5: 3 | AI5: 3 | AJ5: Yes | AK5: 42166.04 | AL5: 3 | AM5: 4 | AN5: Yes | AO5: 108836.84 | AT5: 3 | AU5: 6 | AV5: Yes | AW5: 0 | BF5: 3 | BG5: 9 | BH5: Yes
A6: AMELIA COUNTY PUBLIC SCHOOLS | B6: 4 | H6: 3a. | I6: 3a. Development or acquisition and use of: computer software and hardware | W6: Yes | Z6: 4 | AA6: 1 | AB6: Yes | AC6: 346908.37 | AD6: 4 | AE6: 2 | AF6: Yes | AH6: 4 | AI6: 3 | AJ6: Yes | AL6: 4 | AM6: 4 | AN6: Yes | AO6: 66723.36 | AT6: 4 | AU6: 6 | AV6: Yes | AW6: 0 | BF6: 4 | BG6: 9 | BH6: Yes
A7: AMHERST COUNTY PUBLIC SCHOOLS | B7: 5 | H7: 3b. | I7: 3b. Development or acquisition and use of: instructional/reference materials and academic assessments | W7: No | Z7: 5 | AA7: 1 | AB7: No | AC7: 885018.8 | AD7: 5 | AE7: 2 | AF7: No | AH7: 5 | AI7: 3 | AJ7: No | AL7: 5 | AM7: 4 | AN7: No | AO7: 162116.93 | AT7: 5 | AU7: 6 | AV7: No | AW7: 0 | BF7: 5 | BG7: 9 | BH7: No
A8: APPOMATTOX COUNTY PUBLIC SCHOOLS | B8: 6 | H8: 3c. | I8: 3c. Development or acquisition and use of: library/media services and materials | Z8: 6 | AA8: 1 | AB8: No | AC8: 567155.55 | AD8: 6 | AE8: 2 | AF8: No | AH8: 6 | AI8: 3 | AJ8: No | AL8: 6 | AM8: 4 | AN8: No | AO8: 90073.64 | AT8: 6 | AU8: 6 | AV8: No | AW8: 0 | BF8: 6 | BG8: 9 | BH8: No | BI8: 42396.28
A9: ARLINGTON COUNTY PUBLIC SCHOOLS | B9: 7 | H9: 4. | I9: 4. Educational reform projects, including magnet schools | Z9: 7 | AA9: 1 | AB9: Yes | AC9: 1938429.68 | AD9: 7 | AE9: 2 | AF9: Yes | AH9: 7 | AI9: 3 | AJ9: Yes | AL9: 7 | AM9: 4 | AN9: Yes | AO9: 578776.99 | AT9: 7 | AU9: 6 | AV9: Yes | AW9: 580791.14 | BF9: 7 | BG9: 9 | BH9: Yes
A10: AUGUSTA COUNTY PUBLIC SCHOOLS | B10: 8 | H10: 5. | I10: 5. Programs to improve the academic achievement of educationally disadvantaged elementary and secondary students, including dropout prevention | Z10: 8 | AA10: 1 | AB10: No | AC10: 1232008.89 | AD10: 8 | AE10: 2 | AF10: No | AH10: 8 | AI10: 3 | AJ10: No | AL10: 8 | AM10: 4 | AN10: No | AO10: 273200.47 | AT10: 8 | AU10: 6 | AV10: No | AW10: 13899.54 | BF10: 8 | BG10: 9 | BH10: No
A11: BATH COUNTY PUBLIC SCHOOLS | B11: 9 | H11: 6. | I11: 6. Programs to improve the literacy skills of adults, including adult education and family literacy programs | Z11: 9 | AA11: 1 | AB11: No | AC11: 71070.41 | AD11: 9 | AE11: 2 | AF11: No | AH11: 9 | AI11: 3 | AJ11: No | AL11: 9 | AM11: 4 | AN11: No | AO11: 23069.45 | AT11: 9 | AU11: 6 | AV11: No | AW11: 0 | BF11: 9 | BG11: 9 | BH11: No
A12: BEDFORD CITY PUBLIC SCHOOLS | B12: 140 | H12: 7. | I12: 7. Programs for gifted and talented children | Z12: 10 | AA12: 1 | AB12: No | AC12: 1145914.03 | AD12: 10 | AE12: 2 | AF12: No | AH12: 10 | AI12: 3 | AJ12: No | AL12: 10 | AM12: 4 | AN12: No | AO12: 289537.68 | AT12: 10 | AU12: 6 | AV12: No | AW12: 10823.41 | BF12: 10 | BG12: 9 | BH12: No
A13: BEDFORD COUNTY PUBLIC SCHOOLS | B13: 10 | H13: 8. | I13: 8. Planning, design, and initial implementation of charter schools under Title V, Part B | Z13: 11 | AA13: 1 | AB13: Yes | AC13: 145848.95 | AD13: 11 | AE13: 2 | AF13: Yes | AH13: 11 | AI13: 3 | AJ13: Yes | AL13: 11 | AM13: 4 | AN13: Yes | AO13: 29073.03 | AT13: 11 | AU13: 6 | AV13: Yes | AW13: 0 | BF13: 11 | BG13: 9 | BH13: Yes
A14: BLAND COUNTY PUBLIC SCHOOLS | B14: 11 | H14: 9. | I14: 9. School improvement programs or activities under Sections 1116 and 1117 of Title I, Part A | Z14: 12 | AA14: 1 | AB14: No | AC14: 399151.25 | AD14: 12 | AE14: 2 | AF14: No | AH14: 12 | AI14: 3 | AJ14: No | AL14: 12 | AM14: 4 | AN14: No | AO14: 102008.92 | AT14: 12 | AU14: 6 | AV14: No | AW14: 0 | BF14: 12 | BG14: 9 | BH14: No
A15: BOTETOURT COUNTY PUBLIC SCHOOLS | B15: 12 | H15: 10. | I15: 10. Community service programs | Z15: 13 | AA15: 1 | AB15: Yes | AC15: 675744.96 | AD15: 13 | AE15: 2 | AF15: Yes | AH15: 13 | AI15: 3 | AJ15: Yes | AL15: 13 | AM15: 4 | AN15: Yes | AO15: 141614.94 | AT15: 13 | AU15: 6 | AV15: Yes | AW15: 0 | BF15: 13 | BG15: 9 | BH15: Yes | BI15: 35353.84
A16: BRISTOL CITY PUBLIC SCHOOLS | B16: 102 | H16: 11. | I16: 11. Consumer, economic, and personal finance education | Z16: 14 | AA16: 1 | AB16: Yes | AC16: 1153736.24 | AD16: 14 | AE16: 2 | AF16: Yes | AH16: 14 | AI16: 3 | AJ16: Yes | AL16: 14 | AM16: 4 | AN16: Yes | AO16: 288212.45 | AT16: 14 | AU16: 6 | AV16: Yes | AW16: 0 | BF16: 14 | BG16: 9 | BH16: Yes | BI16: 59901.19
A17: BRUNSWICK COUNTY PUBLIC SCHOOLS | B17: 13 | H17: 12. | I17: 12. Public school choice | W17: 1000 | Z17: 15 | AA17: 1 | AB17: Yes | AC17: 655870.69 | AD17: 15 | AE17: 2 | AF17: Yes | AH17: 15 | AI17: 3 | AJ17: Yes | AL17: 15 | AM17: 4 | AN17: Yes | AO17: 117055.64 | AT17: 15 | AU17: 6 | AV17: Yes | AW17: 0 | BF17: 15 | BG17: 9 | BH17: Yes | BI17: 38227.48
A18: BUCHANAN COUNTY PUBLIC SCHOOLS | B18: 14 | H18: 13. | I18: 13. Programs to hire and support school nurses | W18: 2000 | Z18: 16 | AA18: 1 | AB18: No | AC18: 1545273.89 | AD18: 16 | AE18: 2 | AF18: No | AH18: 16 | AI18: 3 | AJ18: No | AL18: 16 | AM18: 4 | AN18: No | AO18: 286448.53 | AT18: 16 | AU18: 6 | AV18: No | AW18: 14051.98 | BF18: 16 | BG18: 9 | BH18: No
A19: BUCKINGHAM COUNTY PUBLIC SCHOOLS | B19: 15 | H19: 14. | I19: 14. School-based mental health services | W19: 3000 | Z19: 17 | AA19: 1 | AB19: Yes | AC19: 814710.69 | AD19: 17 | AE19: 2 | AF19: Yes | AH19: 17 | AI19: 3 | AJ19: Yes | AL19: 17 | AM19: 4 | AN19: Yes | AO19: 148001.87 | AT19: 17 | AU19: 6 | AV19: Yes | AW19: 0 | BF19: 17 | BG19: 9 | BH19: Yes
A20: BUENA VISTA CITY PUBLIC SCHOOLS | B20: 103 | H20: 15. | I20: 15. Alternative educational programs | W20: 4000 | Z20: 18 | AA20: 1 | AB20: No | AC20: 1092840.39 | AD20: 18 | AE20: 2 | AF20: No | AG20: 44652.04 | AH20: 18 | AI20: 3 | AJ20: No | AL20: 18 | AM20: 4 | AN20: No | AO20: 175016.18 | AT20: 18 | AU20: 6 | AV20: No | AW20: 0 | BF20: 18 | BG20: 9 | BH20: No | BI20: 81089.21
A21: CAMPBELL COUNTY PUBLIC SCHOOLS | B21: 16 | H21: 16. | I21: 16. Prekindergarten programs | W21: 5000 | Z21: 19 | AA21: 1 | AB21: Yes | AC21: 153655.88 | AD21: 19 | AE21: 2 | AF21: Yes | AH21: 19 | AI21: 3 | AJ21: Yes | AL21: 19 | AM21: 4 | AN21: Yes | AO21: 41615.81 | AT21: 19 | AU21: 6 | AV21: Yes | AW21: 0 | BF21: 19 | BG21: 9 | BH21: Yes
A22: CAROLINE COUNTY PUBLIC SCHOOLS | B22: 17 | H22: 17. | I22: 17. Academic intervention programs jointly operated with community-based organizations | W22: 6000 | Z22: 20 | AA22: 1 | AB22: Yes | AC22: 563153.39 | AD22: 20 | AE22: 2 | AF22: Yes | AH22: 20 | AI22: 3 | AJ22: Yes | AL22: 20 | AM22: 4 | AN22: Yes | AO22: 100384.89 | AT22: 20 | AU22: 6 | AV22: Yes | AW22: 0 | BF22: 20 | BG22: 9 | BH22: Yes | BI22: 37438.24
A23: CARROLL COUNTY PUBLIC SCHOOLS | B23: 18 | H23: 18. | I23: 18. CPR training | W23: 8000 | Z23: 21 | AA23: 1 | AB23: No | AC23: 5714631.13 | AD23: 21 | AE23: 2 | AF23: No | AH23: 21 | AI23: 3 | AJ23: No | AL23: 21 | AM23: 4 | AN23: No | AO23: 1115942.77 | AT23: 21 | AU23: 6 | AV23: No | AW23: 399098.51 | BF23: 21 | BG23: 9 | BH23: No
A24: CHARLES CITY COUNTY PUBLIC SCHOOLS | B24: 19 | H24: 19. | I24: 19. Smaller learning communities | Z24: 22 | AA24: 1 | AB24: No | AC24: 176849.62 | AD24: 22 | AE24: 2 | AF24: No | AH24: 22 | AI24: 3 | AJ24: No | AL24: 22 | AM24: 4 | AN24: No | AO24: 55133.09 | AT24: 22 | AU24: 6 | AV24: No | AW24: 0 | BF24: 22 | BG24: 9 | BH24: No
A25: CHARLOTTE COUNTY PUBLIC SCHOOLS | B25: 20 | H25: 20. | I25: 20. Activities that encourage and expand improvements throughout the LEA area that are designed to advance student academic achievement | Z25: 23 | AA25: 1 | AB25: Yes | AC25: 164891.08 | AD25: 23 | AE25: 2 | AF25: Yes | AH25: 23 | AI25: 3 | AJ25: Yes | AL25: 23 | AM25: 4 | AN25: Yes | AO25: 23564.46 | AT25: 23 | AU25: 6 | AV25: Yes | AW25: 0 | BF25: 23 | BG25: 9 | BH25: Yes
A26: CHARLOTTESVILLE CITY PUBLIC SCHOOLS | B26: 104 | H26: 21. | I26: 21. Parental and community involvement | Z26: 24 | AA26: 1 | AB26: No | AC26: 1396949.73 | AD26: 24 | AE26: 2 | AF26: No | AH26: 24 | AI26: 3 | AJ26: No | AK26: 75055.02 | AL26: 24 | AM26: 4 | AN26: No | AO26: 201224.25 | AT26: 24 | AU26: 6 | AV26: No | AW26: 73015.81 | BF26: 24 | BG26: 9 | BH26: No
A27: CHESAPEAKE CITY PUBLIC SCHOOLS | B27: 136 | H27: 22. | I27: 22. Activities that expand learning through best-practice models | Z27: 25 | AA27: 1 | AB27: Yes | AC27: 395240.36 | AD27: 25 | AE27: 2 | AF27: Yes | AH27: 25 | AI27: 3 | AJ27: Yes | AL27: 25 | AM27: 4 | AN27: Yes | AO27: 68531.73 | AT27: 25 | AU27: 6 | AV27: Yes | AW27: 0 | BF27: 25 | BG27: 9 | BH27: Yes | BI27: 24871.14
A28: CHESTERFIELD COUNTY PUBLIC SCHOOLS | B28: 21 | H28: 23. | I28: 23. Same-gender schools and classrooms (consistent with applicable law)** | Z28: 26 | AA28: 1 | AB28: No | AC28: 667387.98 | AD28: 26 | AE28: 2 | AF28: No | AH28: 26 | AI28: 3 | AJ28: No | AL28: 26 | AM28: 4 | AN28: No | AO28: 190725.7 | AT28: 26 | AU28: 6 | AV28: No | AW28: 0 | BF28: 26 | BG28: 9 | BH28: No | BI28: 42396.28
A29: CLARKE COUNTY PUBLIC SCHOOLS | B29: 22 | H29: 24. | I29: 24. Service learning activities | Z29: 27 | AA29: 1 | AB29: Yes | AC29: 623179.69 | AD29: 27 | AE29: 2 | AF29: Yes | AH29: 27 | AI29: 3 | AJ29: Yes | AL29: 27 | AM29: 4 | AN29: Yes | AO29: 150710.04 | AT29: 27 | AU29: 6 | AV29: Yes | AW29: 0 | BF29: 27 | BG29: 9 | BH29: Yes
A30: CLIFTON FORGE CITY | B30: 105 | H30: 25. | I30: 25. School safety programs | Z30: 28 | AA30: 1 | AB30: No | AC30: 445025.3 | AD30: 28 | AE30: 2 | AF30: No | AH30: 28 | AI30: 3 | AJ30: No | AL30: 28 | AM30: 4 | AN30: No | AO30: 64231.8 | AT30: 28 | AU30: 6 | AV30: No | AW30: 0 | BF30: 28 | BG30: 9 | BH30: No | BI30: 29444.67
A31: COLONIAL BEACH TOWN PUBLIC SCHOOLS | B31: 202 | H31: 26. | I31: 26. Programs that use research-based cognitive and perceptual development approaches | Z31: 29 | AA31: 1 | AB31: No | AC31: 19058305.99 | AD31: 29 | AE31: 2 | AF31: No | AH31: 29 | AI31: 3 | AJ31: No | AL31: 29 | AM31: 4 | AN31: No | AO31: 3103436.61 | AT31: 29 | AU31: 6 | AV31: No | AW31: 4300477.94 | BF31: 29 | BG31: 9 | BH31: No
A32: COLONIAL HEIGHTS CITY PUBLIC SCHOOLS | B32: 106 | H32: 27. | I32: 27. Supplemental educational services as defined in Section 1116(e) of Title I, Part A | Z32: 30 | AA32: 1 | AB32: Yes | AC32: 750182.79 | AD32: 30 | AE32: 2 | AF32: Yes | AH32: 30 | AI32: 3 | AJ32: Yes | AL32: 30 | AM32: 4 | AN32: Yes | AO32: 231857.94 | AT32: 30 | AU32: 6 | AV32: Yes | AW32: 64826.51 | BF32: 30 | BG32: 9 | BH32: Yes
A33: COVINGTON CITY PUBLIC SCHOOLS | B33: 107 | I33: Program Administration | Z33: 31 | AA33: 1 | AB33: Yes | AC33: 432347.3 | AD33: 31 | AE33: 2 | AF33: Yes | AH33: 31 | AI33: 3 | AJ33: Yes | AL33: 31 | AM33: 4 | AN33: Yes | AO33: 78309.01 | AT33: 31 | AU33: 6 | AV33: Yes | AW33: 0 | BF33: 31 | BG33: 9 | BH33: Yes
A34: CRAIG COUNTY PUBLIC SCHOOLS | B34: 23 | I34: Indirect Costs (not to exceed approved rate) | Z34: 32 | AA34: 1 | AB34: Yes | AC34: 334692.04 | AD34: 32 | AE34: 2 | AF34: Yes | AH34: 32 | AI34: 3 | AJ34: Yes | AL34: 32 | AM34: 4 | AN34: Yes | AO34: 91767.55 | AT34: 32 | AU34: 6 | AV34: Yes | AW34: 0 | BF34: 32 | BG34: 9 | BH34: Yes
A35: CULPEPER COUNTY PUBLIC SCHOOLS | B35: 24 | Z35: 33 | AA35: 1 | AB35: Yes | AC35: 1759978.81 | AD35: 33 | AE35: 2 | AF35: Yes | AH35: 33 | AI35: 3 | AJ35: Yes | AL35: 33 | AM35: 4 | AN35: Yes | AO35: 259741.73 | AT35: 33 | AU35: 6 | AV35: Yes | AW35: 13785.6 | BF35: 33 | BG35: 9 | BH35: Yes
A36: CUMBERLAND COUNTY PUBLIC SCHOOLS | B36: 25 | Z36: 34 | AA36: 1 | AB36: No | AC36: 1466937.97 | AD36: 34 | AE36: 2 | AF36: No | AH36: 34 | AI36: 3 | AJ36: No | AK36: 65468.33 | AL36: 34 | AM36: 4 | AN36: No | AO36: 267006.27 | AT36: 34 | AU36: 6 | AV36: No | AW36: 76208.77 | BF36: 34 | BG36: 9 | BH36: No
A37: DANVILLE CITY PUBLIC SCHOOLS | B37: 108 | Z37: 35 | AA37: 1 | AB37: No | AC37: 445027.2 | AD37: 35 | AE37: 2 | AF37: No | AH37: 35 | AI37: 3 | AJ37: No | AL37: 35 | AM37: 4 | AN37: No | AO37: 95220.4 | AT37: 35 | AU37: 6 | AV37: No | AW37: 0 | BF37: 35 | BG37: 9 | BH37: No
A38: DICKENSON COUNTY PUBLIC SCHOOLS | B38: 26 | Z38: 36 | AA38: 1 | AB38: Yes | AC38: 667366.41 | AD38: 36 | AE38: 2 | AF38: Yes | AH38: 36 | AI38: 3 | AJ38: Yes | AL38: 36 | AM38: 4 | AN38: Yes | AO38: 205487.34 | AT38: 36 | AU38: 6 | AV38: Yes | AW38: 0 | BF38: 36 | BG38: 9 | BH38: Yes
A39: DINWIDDIE COUNTY PUBLIC SCHOOLS | B39: 27 | Z39: 37 | AA39: 1 | AB39: No | AC39: 259489.63 | AD39: 37 | AE39: 2 | AF39: No | AH39: 37 | AI39: 3 | AJ39: No | AK39: 75455.02 | AL39: 37 | AM39: 4 | AN39: No | AO39: 57140.37 | AT39: 37 | AU39: 6 | AV39: No | AW39: 0 | BF39: 37 | BG39: 9 | BH39: No
A40: EMPORIA CITY PUBLIC SCHOOLS | B40: 138 | Z40: 38 | AA40: 1 | AB40: No | AC40: 579299.45 | AD40: 38 | AE40: 2 | AF40: No | AH40: 38 | AI40: 3 | AJ40: No | AL40: 38 | AM40: 4 | AN40: No | AO40: 105453.79 | AT40: 38 | AU40: 6 | AV40: No | AW40: 0 | BF40: 38 | BG40: 9 | BH40: No | BI40: 34261.05
A41: ESSEX COUNTY PUBLIC SCHOOLS | B41: 28 | Z41: 39 | AA41: 1 | AB41: Yes | AC41: 347914.44 | AD41: 39 | AE41: 2 | AF41: Yes | AH41: 39 | AI41: 3 | AJ41: Yes | AL41: 39 | AM41: 4 | AN41: Yes | AO41: 92085.32 | AT41: 39 | AU41: 6 | AV41: Yes | AW41: 14013.46 | BF41: 39 | BG41: 9 | BH41: Yes
A42: FAIRFAX CITY PUBLIC SCHOOLS | B42: 134 | Z42: 40 | AA42: 1 | AB42: Yes | AC42: 394688.88 | AD42: 40 | AE42: 2 | AF42: Yes | AH42: 40 | AI42: 3 | AJ42: Yes | AL42: 40 | AM42: 4 | AN42: Yes | AO42: 143292.89 | AT42: 40 | AU42: 6 | AV42: Yes | AW42: 0 | BF42: 40 | BG42: 9 | BH42: Yes | BI42: 45674.66
A43: FAIRFAX COUNTY PUBLIC SCHOOLS | B43: 29 | Z43: 41 | AA43: 1 | AB43: Yes | AC43: 1688629.4 | AD43: 41 | AE43: 2 | AF43: Yes | AH43: 41 | AI43: 3 | AJ43: Yes | AL43: 41 | AM43: 4 | AN43: Yes | AO43: 266692.28 | AT43: 41 | AU43: 6 | AV43: Yes | AW43: 0 | BF43: 41 | BG43: 9 | BH43: Yes | BI43: 101326.1
A44: FALLS CHURCH CITY PUBLIC SCHOOLS | B44: 109 | Z44: 42 | AA44: 1 | AB44: No | AC44: 1040367.33 | AD44: 42 | AE44: 2 | AF44: No | AH44: 42 | AI44: 3 | AJ44: No | AL44: 42 | AM44: 4 | AN44: No | AO44: 281871.45 | AT44: 42 | AU44: 6 | AV44: No | AW44: 24836.87 | BF44: 42 | BG44: 9 | BH44: No
A45: FAUQUIER COUNTY PUBLIC SCHOOLS | B45: 30 | Z45: 43 | AA45: 1 | AB45: No | AC45: 7349539.64 | AD45: 43 | AE45: 2 | AF45: No | AH45: 43 | AI45: 3 | AJ45: No | AL45: 43 | AM45: 4 | AN45: No | AO45: 1060488.37 | AT45: 43 | AU45: 6 | AV45: No | AW45: 380626.54 | BF45: 43 | BG45: 9 | BH45: No
A46: FLOYD COUNTY PUBLIC SCHOOLS | B46: 31 | Z46: 44 | AA46: 1 | AB46: No | AC46: 2365483.95 | AD46: 44 | AE46: 2 | AF46: No | AH46: 44 | AI46: 3 | AJ46: No | AL46: 44 | AM46: 4 | AN46: No | AO46: 344135.24 | AT46: 44 | AU46: 6 | AV46: No | AW46: 50585.19 | BF46: 44 | BG46: 9 | BH46: No | BI46: 136862.07
A47: FLUVANNA COUNTY PUBLIC SCHOOLS | B47: 32 | Z47: 45 | AA47: 1 | AB47: No | AC47: 50679.88 | AD47: 45 | AE47: 2 | AF47: No | AH47: 45 | AI47: 3 | AJ47: No | AL47: 45 | AM47: 4 | AN47: No | AO47: 14288.79 | AT47: 45 | AU47: 6 | AV47: No | AW47: 0 | BF47: 45 | BG47: 9 | BH47: No
A48: FRANKLIN CITY PUBLIC SCHOOLS | B48: 135 | Z48: 46 | AA48: 1 | AB48: No | AC48: 583674.4 | AD48: 46 | AE48: 2 | AF48: No | AH48: 46 | AI48: 3 | AJ48: No | AL48: 46 | AM48: 4 | AN48: No | AO48: 172646.82 | AT48: 46 | AU48: 6 | AV48: No | AW48: 0 | BF48: 46 | BG48: 9 | BH48: No
A49: FRANKLIN COUNTY PUBLIC SCHOOLS | B49: 33 | Z49: 47 | AA49: 1 | AC49: 957773.93 | AD49: 47 | AE49: 2 | AH49: 47 | AI49: 3 | AL49: 47 | AM49: 4 | AT49: 47 | AU49: 6 | AW49: 0 | BF49: 47 | BG49: 9
A50: FREDERICK COUNTY PUBLIC SCHOOLS | B50: 34 | Z50: 48 | AA50: 1 | AB50: No | AC50: 364442.44 | AD50: 48 | AE50: 2 | AF50: No | AH50: 48 | AI50: 3 | AJ50: No | AL50: 48 | AM50: 4 | AN50: No | AO50: 91432.01 | AT50: 48 | AU50: 6 | AV50: No | AW50: 0 | BF50: 48 | BG50: 9 | BH50: No
A51: FREDERICKSBURG CITY PUBLIC SCHOOLS | B51: 110 | Z51: 49 | AA51: 1 | AB51: Yes | AC51: 187432.04 | AD51: 49 | AE51: 2 | AF51: Yes | AH51: 49 | AI51: 3 | AJ51: Yes | AL51: 49 | AM51: 4 | AN51: Yes | AO51: 49615.09 | AT51: 49 | AU51: 6 | AV51: Yes | AW51: 0 | BF51: 49 | BG51: 9 | BH51: Yes
A52: GALAX CITY PUBLIC SCHOOLS | B52: 111 | Z52: 50 | AA52: 1 | AB52: Yes | AC52: 207204.21 | AD52: 50 | AE52: 2 | AF52: Yes | AH52: 50 | AI52: 3 | AJ52: Yes | AL52: 50 | AM52: 4 | AN52: Yes | AO52: 53769.64 | AT52: 50 | AU52: 6 | AV52: Yes | AW52: 0 | BF52: 50 | BG52: 9 | BH52: Yes
A53: GILES COUNTY PUBLIC SCHOOLS | B53: 35 | Z53: 51 | AA53: 1 | AB53: Yes | AC53: 359206.96 | AD53: 51 | AE53: 2 | AF53: Yes | AH53: 51 | AI53: 3 | AJ53: Yes | AL53: 51 | AM53: 4 | AN53: Yes | AO53: 77011.74 | AT53: 51 | AU53: 6 | AV53: Yes | AW53: 0 | BF53: 51 | BG53: 9 | BH53: Yes | BI53: 23636.68
A54: GLOUCESTER COUNTY PUBLIC SCHOOLS | B54: 36 | Z54: 52 | AA54: 1 | AB54: Yes | AC54: 1452119.85 | AD54: 52 | AE54: 2 | AF54: Yes | AH54: 52 | AI54: 3 | AJ54: Yes | AL54: 52 | AM54: 4 | AN54: Yes | AO54: 285434.21 | AT54: 52 | AU54: 6 | AV54: Yes | AW54: 0 | BF54: 52 | BG54: 9 | BH54: Yes | BI54: 59860.71
A55: GOOCHLAND COUNTY PUBLIC SCHOOLS | B55: 37 | Z55: 53 | AA55: 1 | AB55: Yes | AC55: 1478880.05 | AD55: 53 | AE55: 2 | AF55: Yes | AH55: 53 | AI55: 3 | AJ55: Yes | AL55: 53 | AM55: 4 | AN55: Yes | AO55: 506325.26 | AT55: 53 | AU55: 6 | AV55: Yes | AW55: 911330.88 | BF55: 53 | BG55: 9 | BH55: Yes
A56: GRAYSON COUNTY PUBLIC SCHOOLS | B56: 38 | Z56: 54 | AA56: 1 | AB56: No | AC56: 802748.47 | AD56: 54 | AE56: 2 | AF56: No | AH56: 54 | AI56: 3 | AJ56: No | AL56: 54 | AM56: 4 | AN56: No | AO56: 157619.98 | AT56: 54 | AU56: 6 | AV56: No | AW56: 0 | BF56: 54 | BG56: 9 | BH56: No
A57: GREENE COUNTY PUBLIC SCHOOLS | B57: 39 | Z57: 55 | AA57: 1 | AB57: Yes | AC57: 575986.28 | AD57: 55 | AE57: 2 | AF57: Yes | AH57: 55 | AI57: 3 | AJ57: Yes | AL57: 55 | AM57: 4 | AN57: Yes | AO57: 101958.14 | AT57: 55 | AU57: 6 | AV57: Yes | AW57: 0 | BF57: 55 | BG57: 9 | BH57: Yes | BI57: 28716.14
A58: GREENSVILLE COUNTY PUBLIC SCHOOLS | B58: 40 | Z58: 56 | AA58: 1 | AB58: No | AC58: 368226.52 | AD58: 56 | AE58: 2 | AF58: No | AH58: 56 | AI58: 3 | AJ58: No | AL58: 56 | AM58: 4 | AN58: No | AO58: 78564.81 | AT58: 56 | AU58: 6 | AV58: No | AW58: 0 | BF58: 56 | BG58: 9 | BH58: No
A59: HALIFAX COUNTY PUBLIC SCHOOLS | B59: 41 | Z59: 57 | AA59: 1 | AB59: Yes | AC59: 184826.4 | AD59: 57 | AE59: 2 | AF59: Yes | AH59: 57 | AI59: 3 | AJ59: Yes | AL59: 57 | AM59: 4 | AN59: Yes | AO59: 46207.27 | AT59: 57 | AU59: 6 | AV59: Yes | AW59: 0 | BF59: 57 | BG59: 9 | BH59: Yes
A60: HAMPTON CITY PUBLIC SCHOOLS | B60: 112 | Z60: 58 | AA60: 1 | AB60: Yes | AC60: 1294642.32 | AD60: 58 | AE60: 2 | AF60: Yes | AH60: 58 | AI60: 3 | AJ60: Yes | AL60: 58 | AM60: 4 | AN60: Yes | AO60: 223954.11 | AT60: 58 | AU60: 6 | AV60: Yes | AW60: 0 | BF60: 58 | BG60: 9 | BH60: Yes | BI60: 86168.67
A61: HANOVER COUNTY PUBLIC SCHOOLS | B61: 42 | Z61: 59 | AA61: 1 | AB61: Yes | AC61: 299225.65 | AD61: 59 | AE61: 2 | AF61: Yes | AH61: 59 | AI61: 3 | AJ61: Yes | AL61: 59 | AM61: 4 | AN61: Yes | AO61: 58049.81 | AT61: 59 | AU61: 6 | AV61: Yes | AW61: 0 | BF61: 59 | BG61: 9 | BH61: Yes | BI61: 21774.89
A62: HARRISONBURG CITY PUBLIC SCHOOLS | B62: 113 | Z62: 60 | AA62: 1 | AB62: No | AC62: 1827644.08 | AD62: 60 | AE62: 2 | AF62: No | AH62: 60 | AI62: 3 | AJ62: No | AL62: 60 | AM62: 4 | AN62: No | AO62: 344771.08 | AT62: 60 | AU62: 6 | AV62: No | AW62: 26090.11 | BF62: 60 | BG62: 9 | BH62: No
A63: HENRICO COUNTY PUBLIC SCHOOLS | B63: 43 | Z63: 62 | AA63: 1 | AB63: No | AC63: 436338.29 | AD63: 62 | AE63: 2 | AF63: No | AH63: 62 | AI63: 3 | AJ63: No | AL63: 62 | AM63: 4 | AN63: No | AO63: 88680.4 | AT63: 62 | AU63: 6 | AV63: No | AW63: 0 | BF63: 62 | BG63: 9 | BH63: No | BI63: 36912.08
A64: HENRY COUNTY PUBLIC SCHOOLS | B64: 44 | Z64: 63 | AA64: 1 | AB64: Yes | AC64: 235524.03 | AD64: 63 | AE64: 2 | AF64: Yes | AH64: 63 | AI64: 3 | AJ64: Yes | AL64: 63 | AM64: 4 | AN64: Yes | AO64: 51436.66 | AT64: 63 | AU64: 6 | AV64: Yes | AW64: 0 | BF64: 63 | BG64: 9 | BH64: Yes
A65: HIGHLAND COUNTY PUBLIC SCHOOLS | B65: 45 | Z65: 65 | AA65: 1 | AB65: Yes | AC65: 725875.23 | AD65: 65 | AE65: 2 | AF65: Yes | AG65: 146597.21 | AH65: 65 | AI65: 3 | AJ65: Yes | AL65: 65 | AM65: 4 | AN65: Yes | AO65: 143027.96 | AT65: 65 | AU65: 6 | AV65: Yes | AW65: 18570.69 | BF65: 65 | BG65: 9 | BH65: Yes | BI65: 30092.25
A66: HOPEWELL CITY PUBLIC SCHOOLS | B66: 114 | Z66: 66 | AA66: 1 | AB66: Yes | AC66: 415720.58 | AD66: 66 | AE66: 2 | AF66: Yes | AH66: 66 | AI66: 3 | AJ66: Yes | AL66: 66 | AM66: 4 | AN66: Yes | AO66: 72859.09 | AT66: 66 | AU66: 6 | AV66: Yes | AW66: 0 | BF66: 66 | BG66: 9 | BH66: Yes | BI66: 26834.11
A67: ISLE OF WIGHT COUNTY PUBLIC SCHOOLS | B67: 46 | Z67: 67 | AA67: 1 | AB67: Yes | AC67: 712107.14 | AD67: 67 | AE67: 2 | AF67: Yes | AG67: 16791.84 | AH67: 67 | AI67: 3 | AJ67: Yes | AL67: 67 | AM67: 4 | AN67: Yes | AO67: 123873.7 | AT67: 67 | AU67: 6 | AV67: Yes | AW67: 0 | BF67: 67 | BG67: 9 | BH67: Yes | BI67: 41060.65
A68: JAMES CITY COUNTY PUBLIC SCHOOLS | B68: 47 | Z68: 68 | AA68: 1 | AB68: Yes | AC68: 711907.43 | AD68: 68 | AE68: 2 | AF68: Yes | AH68: 68 | AI68: 3 | AJ68: Yes | AL68: 68 | AM68: 4 | AN68: Yes | AO68: 136853.58 | AT68: 68 | AU68: 6 | AV68: Yes | AW68: 16064.22 | BF68: 68 | BG68: 9 | BH68: Yes
A69: JAMES MADISON UNIVERSITY | B69: 871 | Z69: 69 | AA69: 1 | AB69: Yes | AC69: 743761.79 | AD69: 69 | AE69: 2 | AF69: Yes | AH69: 69 | AI69: 3 | AJ69: Yes | AL69: 69 | AM69: 4 | AN69: Yes | AO69: 140904.88 | AT69: 69 | AU69: 6 | AV69: Yes | AW69: 0 | BF69: 69 | BG69: 9 | BH69: Yes
A70: KING AND QUEEN COUNTY PUBLIC SCHOOLS | B70: 49 | Z70: 70 | AA70: 1 | AB70: No | AC70: 669452.26 | AD70: 70 | AE70: 2 | AF70: No | AH70: 70 | AI70: 3 | AJ70: No | AL70: 70 | AM70: 4 | AN70: No | AO70: 116294.58 | AT70: 70 | AU70: 6 | AV70: No | AW70: 0 | BF70: 70 | BG70: 9 | BH70: No | BI70: 49297.06
A71: KING GEORGE COUNTY PUBLIC SCHOOLS | B71: 48 | Z71: 71 | AA71: 1 | AB71: No | AC71: 1936344.77 | AD71: 71 | AE71: 2 | AF71: No | AH71: 71 | AI71: 3 | AJ71: No | AL71: 71 | AM71: 4 | AN71: No | AO71: 340390.14 | AT71: 71 | AU71: 6 | AV71: No | AW71: 18798.55 | BF71: 71 | BG71: 9 | BH71: No
A72: KING WILLIAM COUNTY PUBLIC SCHOOLS | B72: 50 | Z72: 72 | AA72: 1 | AB72: No | AC72: 299983.23 | AD72: 72 | AE72: 2 | AF72: No | AH72: 72 | AI72: 3 | AJ72: No | AL72: 72 | AM72: 4 | AN72: No | AO72: 76424.71 | AT72: 72 | AU72: 6 | AV72: No | AW72: 0 | BF72: 72 | BG72: 9 | BH72: No
A73: LANCASTER COUNTY PUBLIC SCHOOLS | B73: 51 | Z73: 73 | AA73: 1 | AB73: Yes | AC73: 821866.06 | AD73: 73 | AE73: 2 | AF73: Yes | AH73: 73 | AI73: 3 | AJ73: Yes | AL73: 73 | AM73: 4 | AN73: Yes | AO73: 149716.19 | AT73: 73 | AU73: 6 | AV73: Yes | AW73: 0 | BF73: 73 | BG73: 9 | BH73: Yes | BI73: 41607.04
A74: LEE COUNTY PUBLIC SCHOOLS | B74: 52 | Z74: 74 | AA74: 1 | AB74: Yes | AC74: 595755.54 | AD74: 74 | AE74: 2 | AF74: Yes | AH74: 74 | AI74: 3 | AJ74: Yes | AL74: 74 | AM74: 4 | AN74: Yes | AO74: 145758 | AT74: 74 | AU74: 6 | AV74: Yes | AW74: 0 | BF74: 74 | BG74: 9 | BH74: Yes
A75: LEXINGTON CITY PUBLIC SCHOOLS | B75: 137 | Z75: 75 | AA75: 1 | AB75: No | AC75: 9359215.49 | AD75: 75 | AE75: 2 | AF75: No | AH75: 75 | AI75: 3 | AJ75: No | AK75: 83222.45 | AL75: 75 | AM75: 4 | AN75: No | AO75: 1193842.68 | AT75: 75 | AU75: 6 | AV75: No | AW75: 1724269.73 | BF75: 75 | BG75: 9 | BH75: No
A76: LOUDOUN COUNTY PUBLIC SCHOOLS | B76: 53 | Z76: 77 | AA76: 1 | AB76: No | AC76: 1035194.35 | AD76: 77 | AE76: 2 | AF76: No | AH76: 77 | AI76: 3 | AJ76: No | AL76: 77 | AM76: 4 | AN76: No | AO76: 210100.98 | AT76: 77 | AU76: 6 | AV76: No | AW76: 0 | BF76: 77 | BG76: 9 | BH76: No
A77: LOUISA COUNTY PUBLIC SCHOOLS | B77: 54 | Z77: 78 | AA77: 1 | AB77: Yes | AC77: 168077.55 | AD77: 78 | AE77: 2 | AF77: Yes | AH77: 78 | AI77: 3 | AJ77: Yes | AL77: 78 | AM77: 4 | AN77: Yes | AO77: 35529.61 | AT77: 78 | AU77: 6 | AV77: Yes | AW77: 0 | BF77: 78 | BG77: 9 | BH77: Yes
A78: LUNENBURG COUNTY PUBLIC SCHOOLS | B78: 55 | Z78: 79 | AA78: 1 | AB78: Yes | AC78: 251322.25 | AD78: 79 | AE78: 2 | AF78: Yes | AH78: 79 | AI78: 3 | AJ78: Yes | AL78: 79 | AM78: 4 | AN78: Yes | AO78: 55251.88 | AT78: 79 | AU78: 6 | AV78: Yes | AW78: 0 | BF78: 79 | BG78: 9 | BH78: Yes | BI78: 22442.71
A79: LYNCHBURG CITY PUBLIC SCHOOLS | B79: 115 | Z79: 80 | AA79: 1 | AB79: No | AC79: 1140222.44 | AD79: 80 | AE79: 2 | AF79: No | AH79: 80 | AI79: 3 | AJ79: No | AL79: 80 | AM79: 4 | AN79: No | AO79: 271412.66 | AT79: 80 | AU79: 6 | AV79: No | AW79: 37255.31 | BF79: 80 | BG79: 9 | BH79: No
A80: MADISON COUNTY PUBLIC SCHOOLS | B80: 56 | Z80: 81 | AA80: 1 | AB80: Yes | AC80: 487094.47 | AD80: 81 | AE80: 2 | AF80: Yes | AH80: 81 | AI80: 3 | AJ80: Yes | AL80: 81 | AM80: 4 | AN80: Yes | AO80: 105392.96 | AT80: 81 | AU80: 6 | AV80: Yes | AW80: 0 | BF80: 81 | BG80: 9 | BH80: Yes
A81: MANASSAS CITY PUBLIC SCHOOLS | B81: 143 | Z81: 82 | AA81: 1 | AB81: No | AC81: 1560395.85 | AD81: 82 | AE81: 2 | AF81: No | AH81: 82 | AI81: 3 | AJ81: No | AL81: 82 | AM81: 4 | AN81: No | AO81: 305475.77 | AT81: 82 | AU81: 6 | AV81: No | AW81: 72345.94 | BF81: 82 | BG81: 9 | BH81: No
A82: MANASSAS PARK CITY PUBLIC SCHOOLS | B82: 144 | Z82: 83 | AA82: 1 | AB82: No | AC82: 1041024.89 | AD82: 83 | AE82: 2 | AF82: No | AH82: 83 | AI82: 3 | AJ82: No | AL82: 83 | AM82: 4 | AN82: No | AO82: 250276.73 | AT82: 83 | AU82: 6 | AV82: No | AW82: 0 | BF82: 83 | BG82: 9 | BH82: No | BI82: 77628.7
A83: MARTINSVILLE CITY PUBLIC SCHOOLS | B83: 116 | Z83: 84 | AA83: 1 | AB83: No | AC83: 899401.35 | AD83: 84 | AE83: 2 | AF83: No | AH83: 84 | AI83: 3 | AJ83: No | AL83: 84 | AM83: 4 | AN83: No | AO83: 169718.44 | AT83: 84 | AU83: 6 | AV83: No | AW83: 0 | BF83: 84 | BG83: 9 | BH83: No
A84: MATHEWS COUNTY PUBLIC SCHOOLS | B84: 57 | Z84: 85 | AA84: 1 | AB84: Yes | AC84: 1061982.44 | AD84: 85 | AE84: 2 | AF84: Yes | AH84: 85 | AI84: 3 | AJ84: Yes | AL84: 85 | AM84: 4 | AN84: Yes | AO84: 182563.88 | AT84: 85 | AU84: 6 | AV84: Yes | AW84: 36685.65 | BF84: 85 | BG84: 9 | BH84: Yes
A85: MCVH AUTHORITY | B85: 948 | Z85: 86 | AA85: 1 | AB85: No | AC85: 1224664.82 | AD85: 86 | AE85: 2 | AF85: No | AH85: 86 | AI85: 3 | AJ85: No | AL85: 86 | AM85: 4 | AN85: No | AO85: 237420.89 | AT85: 86 | AU85: 6 | AV85: No | AW85: 0 | BF85: 86 | BG85: 9 | BH85: No | BI85: 89163.73
A86: MECKLENBURG COUNTY PUBLIC SCHOOLS | B86: 58 | Z86: 87 | AA86: 1 | AB86: No | AC86: 548834.55 | AD86: 87 | AE86: 2 | AF86: No | AH86: 87 | AI86: 3 | AJ86: No | AL86: 87 | AM86: 4 | AN86: No | AO86: 119981.92 | AT86: 87 | AU86: 6 | AV86: No | AW86: 0 | BF86: 87 | BG86: 9 | BH86: No
A87: MIDDLESEX COUNTY PUBLIC SCHOOLS | B87: 59 | Z87: 88 | AA87: 1 | AB87: No | AC87: 2505705 | AD87: 88 | AE87: 2 | AF87: No | AH87: 88 | AI87: 3 | AJ87: No | AL87: 88 | AM87: 4 | AN87: No | AO87: 415102.86 | AT87: 88 | AU87: 6 | AV87: No | AW87: 109487.31 | BF87: 88 | BG87: 9 | BH87: No
A88: MONTGOMERY COUNTY PUBLIC SCHOOLS | B88: 60 | Z88: 89 | AA88: 1 | AB88: Yes | AC88: 1493865.24 | AD88: 89 | AE88: 2 | AF88: Yes | AH88: 89 | AI88: 3 | AJ88: Yes | AK88: 65468.33 | AL88: 89 | AM88: 4 | AN88: Yes | AO88: 391608 | AT88: 89 | AU88: 6 | AV88: Yes | AW88: 160109.59 | BF88: 89 | BG88: 9 | BH88: Yes
A89: NELSON COUNTY PUBLIC SCHOOLS | B89: 62 | Z89: 90 | AA89: 1 | AB89: Yes | AC89: 178917.13 | AD89: 90 | AE89: 2 | AF89: Yes | AH89: 90 | AI89: 3 | AJ89: Yes | AL89: 90 | AM89: 4 | AN89: Yes | AO89: 51364.37 | AT89: 90 | AU89: 6 | AV89: Yes | AW89: 0 | BF89: 90 | BG89: 9 | BH89: Yes
A90: NEW KENT COUNTY PUBLIC SCHOOLS | B90: 63 | Z90: 91 | AA90: 1 | AB90: Yes | AC90: 384791.1 | AD90: 91 | AE90: 2 | AF90: Yes | AH90: 91 | AI90: 3 | AJ90: Yes | AL90: 91 | AM90: 4 | AN90: Yes | AO90: 87840.74 | AT90: 91 | AU90: 6 | AV90: Yes | AW90: 0 | BF90: 91 | BG90: 9 | BH90: Yes | BI90: 21248.73
A91: NEWPORT NEWS CITY PUBLIC SCHOOLS | B91: 117 | Z91: 92 | AA91: 1 | AB91: No | AC91: 1634724.65 | AD91: 92 | AE91: 2 | AF91: No | AH91: 92 | AI91: 3 | AJ91: No | AL91: 92 | AM91: 4 | AN91: No | AO91: 395412.52 | AT91: 92 | AU91: 6 | AV91: No | AW91: 0 | BF91: 92 | BG91: 9 | BH91: No | BI91: 116908.5
A92: NORFOLK CITY PUBLIC SCHOOLS | B92: 118 | Z92: 93 | AA92: 1 | AB92: Yes | AC92: 797445.56 | AD92: 93 | AE92: 2 | AF92: Yes | AH92: 93 | AI92: 3 | AJ92: Yes | AL92: 93 | AM92: 4 | AN92: Yes | AO92: 166176.8 | AT92: 93 | AU92: 6 | AV92: Yes | AW92: 0 | BF92: 93 | BG92: 9 | BH92: Yes
A93: NORTHAMPTON COUNTY PUBLIC SCHOOLS | B93: 65 | Z93: 94 | AA93: 1 | AB93: Yes | AC93: 1472677.86 | AD93: 94 | AE93: 2 | AF93: Yes | AH93: 94 | AI93: 3 | AJ93: Yes | AL93: 94 | AM93: 4 | AN93: Yes | AO93: 296727.14 | AT93: 94 | AU93: 6 | AV93: Yes | AW93: 0 | BF93: 94 | BG93: 9 | BH93: Yes
A94: NORTHUMBERLAND COUNTY PUBLIC SCHOOLS | B94: 66 | Z94: 95 | AA94: 1 | AB94: Yes | AC94: 612667.46 | AD94: 95 | AE94: 2 | AF94: Yes | AG94: 58279.65 | AH94: 95 | AI94: 3 | AJ94: Yes | AL94: 95 | AM94: 4 | AN94: Yes | AO94: 98032.21 | AT94: 95 | AU94: 6 | AV94: Yes | AW94: 0 | BF94: 95 | BG94: 9 | BH94: Yes | BI94: 30375.57
A95: NORTON CITY PUBLIC SCHOOLS | B95: 119 | Z95: 96 | AA95: 1 | AB95: No | AC95: 1830587.27 | AD95: 96 | AE95: 2 | AF95: No | AH95: 96 | AI95: 3 | AJ95: No | AL95: 96 | AM95: 4 | AN95: No | AO95: 396538.21 | AT95: 96 | AU95: 6 | AV95: No | AW95: 0 | BF95: 96 | BG95: 9 | BH95: No | BI95: 111060.04
A96: NOTTOWAY COUNTY PUBLIC SCHOOLS | B96: 67 | Z96: 97 | AA96: 1 | AB96: Yes | AC96: 955292.83 | AD96: 97 | AE96: 2 | AF96: Yes | AH96: 97 | AI96: 3 | AJ96: Yes | AL96: 97 | AM96: 4 | AN96: Yes | AO96: 194377.49 | AT96: 97 | AU96: 6 | AV96: Yes | AW96: 0 | BF96: 97 | BG96: 9 | BH96: Yes | BI96: 80866.6
A97: OLD DOMINION UNIVERSITY | B97: 798 | Z97: 98 | AA97: 1 | AB97: Yes | AC97: 790862.23 | AD97: 98 | AE97: 2 | AF97: Yes | AH97: 98 | AI97: 3 | AJ97: Yes | AL97: 98 | AM97: 4 | AN97: Yes | AO97: 245176.31 | AT97: 98 | AU97: 6 | AV97: Yes | AW97: 32014.5 | BF97: 98 | BG97: 9 | BH97: Yes
A98: ORANGE COUNTY PUBLIC SCHOOLS | B98: 68 | Z98: 101 | AA98: 1 | AB98: No | AC98: 2424663.52 | AD98: 101 | AE98: 2 | AF98: No | AH98: 101 | AI98: 3 | AJ98: No | AL98: 101 | AM98: 4 | AN98: No | AO98: 468249.94 | AT98: 101 | AU98: 6 | AV98: No | AW98: 544221.56 | BF98: 101 | BG98: 9 | BH98: No
A99: PAGE COUNTY PUBLIC SCHOOLS | B99: 69 | Z99: 102 | AA99: 1 | AB99: Yes | AC99: 1187022.84 | AD99: 102 | AE99: 2 | AF99: Yes | AH99: 102 | AI99: 3 | AJ99: Yes | AL99: 102 | AM99: 4 | AN99: Yes | AO99: 143172.31 | AT99: 102 | AU99: 6 | AV99: Yes | AW99: 0 | BF99: 102 | BG99: 9 | BH99: Yes
A100: PATRICK COUNTY PUBLIC SCHOOLS | B100: 70 | Z100: 103 | AA100: 1 | AB100: No | AC100: 222093.19 | AD100: 103 | AE100: 2 | AF100: No | AH100: 103 | AI100: 3 | AJ100: No | AL100: 103 | AM100: 4 | AN100: No | AO100: 43172.6 | AT100: 103 | AU100: 6 | AV100: No | AW100: 0 | BF100: 103 | BG100: 9 | BH100: No | BI100: 19569.07
A101: PETERSBURG CITY PUBLIC SCHOOLS | B101: 120 | Z101: 104 | AA101: 1 | AB101: Yes | AC101: 1310005.38 | AD101: 104 | AE101: 2 | AF101: Yes | AH101: 104 | AI101: 3 | AJ101: Yes | AK101: 43275.68 | AL101: 104 | AM101: 4 | AN101: Yes | AO101: 255988.07 | AT101: 104 | AU101: 6 | AV101: Yes | AW101: 53035.87 | BF101: 104 | BG101: 9 | BH101: Yes
A102: PITTSYLVANIA COUNTY PUBLIC SCHOOLS | B102: 71 | Z102: 106 | AA102: 1 | AB102: Yes | AC102: 426114.92 | AD102: 106 | AE102: 2 | AF102: Yes | AH102: 106 | AI102: 3 | AJ102: Yes | AL102: 106 | AM102: 4 | AN102: Yes | AO102: 69828.73 | AT102: 106 | AU102: 6 | AV102: Yes | AW102: 0 | BF102: 106 | BG102: 9 | BH102: Yes
A103: POQUOSON CITY PUBLIC SCHOOLS | B103: 142 | Z103: 107 | AA103: 1 | AB103: No | AC103: 189854 | AD103: 107 | AE103: 2 | AF103: No | AH103: 107 | AI103: 3 | AJ103: No | AL103: 107 | AM103: 4 | AN103: No | AO103: 50021.95 | AT103: 107 | AU103: 6 | AV103: No | AW103: 0 | BF103: 107 | BG103: 9 | BH103: No | BI103: 16938.28
A104: PORTSMOUTH CITY PUBLIC SCHOOLS | B104: 121 | Z104: 108 | AA104: 1 | AB104: No | AC104: 3362135.93 | AD104: 108 | AE104: 2 | AF104: No | AH104: 108 | AI104: 3 | AJ104: No | AL104: 108 | AM104: 4 | AN104: No | AO104: 475518.84 | AT104: 108 | AU104: 6 | AV104: No | AW104: 21418.95 | BF104: 108 | BG104: 9 | BH104: No
A105: POWHATAN COUNTY PUBLIC SCHOOLS | B105: 72 | Z105: 109 | AA105: 1 | AB105: No | AC105: 35900.35 | AD105: 109 | AE105: 2 | AF105: No | AH105: 109 | AI105: 3 | AJ105: No | AL105: 109 | AM105: 4 | AN105: No | AO105: 26777.29 | AT105: 109 | AU105: 6 | AV105: No | AW105: 20072.92 | BF105: 109 | BG105: 9 | BH105: No
A106: PRINCE EDWARD COUNTY PUBLIC SCHOOLS | B106: 73 | Z106: 110 | AA106: 1 | AB106: No | AC106: 869495.9 | AD106: 110 | AE106: 2 | AF106: No | AH106: 110 | AI106: 3 | AJ106: No | AL106: 110 | AM106: 4 | AN106: No | AO106: 126345.28 | AT106: 110 | AU106: 6 | AV106: No | AW106: 51567.81 | BF106: 110 | BG106: 9 | BH106: No
A107: PRINCE GEORGE COUNTY PUBLIC SCHOOLS | B107: 74 | Z107: 111 | AA107: 1 | AB107: No | AC107: 479304.13 | AD107: 111 | AE107: 2 | AF107: No | AH107: 111 | AI107: 3 | AJ107: No | AL107: 111 | AM107: 4 | AN107: No | AO107: 64239.87 | AT107: 111 | AU107: 6 | AV107: No | AW107: 18570.69 | BF107: 111 | BG107: 9 | BH107: No | BI107: 24344.98
A108: PRINCE WILLIAM COUNTY PUBLIC SCHOOLS | B108: 75 | Z108: 112 | AA108: 1 | AB108: No | AC108: 5925925.06 | AD108: 112 | AE108: 2 | AF108: No | AH108: 112 | AI108: 3 | AJ108: No | AL108: 112 | AM108: 4 | AN108: No | AO108: 940652.91 | AT108: 112 | AU108: 6 | AV108: No | AW108: 42919.99 | BF108: 112 | BG108: 9 | BH108: No
A109: PULASKI COUNTY PUBLIC SCHOOLS | B109: 77 | Z109: 113 | AA109: 1 | AB109: No | AC109: 1430946 | AD109: 113 | AE109: 2 | AF109: No | AH109: 113 | AI109: 3 | AJ109: No | AL109: 113 | AM109: 4 | AN109: No | AO109: 168091.94 | AT109: 113 | AU109: 6 | AV109: No | AW109: 238499.74 | BF109: 113 | BG109: 9 | BH109: No
A110: RADFORD CITY PUBLIC SCHOOLS | B110: 122 | Z110: 114 | AA110: 1 | AB110: Yes | AC110: 1270239.23 | AD110: 114 | AE110: 2 | AF110: Yes | AH110: 114 | AI110: 3 | AJ110: Yes | AL110: 114 | AM110: 4 | AN110: Yes | AO110: 208604.76 | AT110: 114 | AU110: 6 | AV110: Yes | AW110: 13899.54 | BF110: 114 | BG110: 9 | BH110: Yes
A111: RAPPAHANNOCK COUNTY PUBLIC SCHOOLS | B111: 78 | Z111: 115 | AA111: 1 | AB111: Yes | AC111: 3087839.06 | AD111: 115 | AE111: 2 | AF111: Yes | AH111: 115 | AI111: 3 | AJ111: Yes | AK111: 122059.6 | AL111: 115 | AM111: 4 | AN111: Yes | AO111: 538840.68 | AT111: 115 | AU111: 6 | AV111: Yes | AW111: 24267.22 | BF111: 115 | BG111: 9 | BH111: Yes
A112: RICHMOND CITY PUBLIC SCHOOLS | B112: 123 | Z112: 116 | AA112: 1 | AB112: Yes | AC112: 1034151.34 | AD112: 116 | AE112: 2 | AF112: Yes | AH112: 116 | AI112: 3 | AJ112: Yes | AL112: 116 | AM112: 4 | AN112: Yes | AO112: 121656.14 | AT112: 116 | AU112: 6 | AV112: Yes | AW112: 0 | BF112: 116 | BG112: 9 | BH112: Yes | BI112: 41485.62
A113: RICHMOND COUNTY PUBLIC SCHOOLS | B113: 79 | Z113: 117 | AA113: 1 | AB113: No | AC113: 8621665.58 | AD113: 117 | AE113: 2 | AF113: No | AH113: 117 | AI113: 3 | AJ113: No | AK113: 88770.62 | AL113: 117 | AM113: 4 | AN113: No | AO113: 1472911.9 | AT113: 117 | AU113: 6 | AV113: No | AW113: 148612.12 | BF113: 117 | BG113: 9 | BH113: No
A114: ROANOKE CITY PUBLIC SCHOOLS | B114: 124 | Z114: 118 | AA114: 1 | AB114: Yes | AC114: 12444819.02 | AD114: 118 | AE114: 2 | AF114: Yes | AH114: 118 | AI114: 3 | AJ114: Yes | AK114: 169773.81 | AL114: 118 | AM114: 4 | AN114: Yes | AO114: 2091288.19 | AT114: 118 | AU114: 6 | AV114: Yes | AW114: 101170.37 | BF114: 118 | BG114: 9 | BH114: Yes
A115: ROANOKE COUNTY PUBLIC SCHOOLS | B115: 80 | Z115: 119 | AA115: 1 | AB115: Yes | AC115: 196028.34 | AD115: 119 | AE115: 2 | AF115: Yes | AH115: 119 | AI115: 3 | AJ115: Yes | AL115: 119 | AM115: 4 | AN115: Yes | AO115: 42550.62 | AT115: 119 | AU115: 6 | AV115: Yes | AW115: 0 | BF115: 119 | BG115: 9 | BH115: Yes | BI115: 16472.83
A116: ROCKBRIDGE COUNTY PUBLIC SCHOOLS | B116: 81 | Z116: 120 | AA116: 1 | AB116: Yes | AC116: 2363020.53 | AD116: 120 | AE116: 2 | AF116: Yes | AH116: 120 | AI116: 3 | AJ116: Yes | AL116: 120 | AM116: 4 | AN116: Yes | AO116: 361057.2 | AT116: 120 | AU116: 6 | AV116: Yes | AW116: 18570.69 | BF116: 120 | BG116: 9 | BH116: Yes
A117: ROCKINGHAM COUNTY PUBLIC SCHOOLS | B117: 82 | Z117: 121 | AA117: 1 | AB117: Yes | AC117: 5309040.83 | AD117: 121 | AE117: 2 | AF117: Yes | AH117: 121 | AI117: 3 | AJ117: Yes | AL117: 121 | AM117: 4 | AN117: Yes | AO117: 983456.93 | AT117: 121 | AU117: 6 | AV117: Yes | AW117: 3169.8 | BF117: 121 | BG117: 9 | BH117: Yes
A118: RUSSELL COUNTY PUBLIC SCHOOLS | B118: 83 | Z118: 122 | AA118: 1 | AB118: No | AC118: 330069.44 | AD118: 122 | AE118: 2 | AF118: No | AH118: 122 | AI118: 3 | AJ118: No | AL118: 122 | AM118: 4 | AN118: No | AO118: 58624.77 | AT118: 122 | AU118: 6 | AV118: No | AW118: 0 | BF118: 122 | BG118: 9 | BH118: No
A119: SALEM CITY PUBLIC SCHOOLS | B119: 139 | Z119: 123 | AA119: 1 | AB119: No | AC119: 15808821.49 | AD119: 123 | AE119: 2 | AF119: No | AH119: 123 | AI119: 3 | AJ119: No | AK119: 68797.23 | AL119: 123 | AM119: 4 | AN119: No | AO119: 1776735.68 | AT119: 123 | AU119: 6 | AV119: No | AW119: 229911.95 | BF119: 123 | BG119: 9 | BH119: No
A120: SCOTT COUNTY PUBLIC SCHOOLS | B120: 84 | Z120: 124 | AA120: 1 | AB120: Yes | AC120: 5101630.67 | AD120: 124 | AE120: 2 | AF120: Yes | AH120: 124 | AI120: 3 | AJ120: Yes | AL120: 124 | AM120: 4 | AN120: Yes | AO120: 809850.07 | AT120: 124 | AU120: 6 | AV120: Yes | AW120: 141737.07 | BF120: 124 | BG120: 9 | BH120: Yes
A121: SHENANDOAH COUNTY PUBLIC SCHOOLS | B121: 85 | Z121: 126 | AA121: 1 | AB121: No | AC121: 777776.34 | AD121: 126 | AE121: 2 | AF121: No | AH121: 126 | AI121: 3 | AJ121: No | AL121: 126 | AM121: 4 | AN121: No | AO121: 136735.49 | AT121: 126 | AU121: 6 | AV121: No | AW121: 0 | BF121: 126 | BG121: 9 | BH121: No
A122: SMYTH COUNTY PUBLIC SCHOOLS | B122: 86 | Z122: 127 | AA122: 1 | AB122: Yes | AC122: 2838005.51 | AD122: 127 | AE122: 2 | AF122: Yes | AH122: 127 | AI122: 3 | AJ122: Yes | AL122: 127 | AM122: 4 | AN122: Yes | AO122: 522740.96 | AT122: 127 | AU122: 6 | AV122: Yes | AW122: 0 | BF122: 127 | BG122: 9 | BH122: Yes
A123: SOUTHAMPTON COUNTY PUBLIC SCHOOLS | B123: 87 | Z123: 128 | AA123: 1 | AB123: No | AC123: 11439845.93 | AD123: 128 | AE123: 2 | AF123: No | AH123: 128 | AI123: 3 | AJ123: No | AK123: 207501.32 | AL123: 128 | AM123: 4 | AN123: No | AO123: 2181722.74 | AT123: 128 | AU123: 6 | AV123: No | AW123: 104702.23 | BF123: 128 | BG123: 9 | BH123: No
A124: SOUTHWESTERN VA TRAINING CENTER | B124: 951 | Z124: 130 | AA124: 1 | AB124: Yes | AC124: 945847.46 | AD124: 130 | AE124: 2 | AF124: Yes | AH124: 130 | AI124: 3 | AJ124: Yes | AL124: 130 | AM124: 4 | AN124: Yes | AO124: 142325.97 | AT124: 130 | AU124: 6 | AV124: Yes | AW124: 18968.41 | BF124: 130 | BG124: 9 | BH124: Yes
A125: SPOTSYLVANIA COUNTY PUBLIC SCHOOLS | B125: 88 | Z125: 131 | AA125: 1 | AB125: Yes | AC125: 290080.55 | AD125: 131 | AE125: 2 | AF125: Yes | AH125: 131 | AI125: 3 | AJ125: Yes | AL125: 131 | AM125: 4 | AN125: Yes | AO125: 239593.03 | AT125: 131 | AU125: 6 | AV125: Yes | AW125: 61448.59 | BF125: 131 | BG125: 9 | BH125: Yes
A126: STAFFORD COUNTY PUBLIC SCHOOLS | B126: 89 | Z126: 132 | AA126: 1 | AB126: Yes | AC126: 918051.51 | AD126: 132 | AE126: 2 | AF126: Yes | AH126: 132 | AI126: 3 | AJ126: Yes | AL126: 132 | AM126: 4 | AN126: Yes | AO126: 146366.36 | AT126: 132 | AU126: 6 | AV126: Yes | AW126: 92055.93 | BF126: 132 | BG126: 9 | BH126: Yes
A127: STAUNTON CITY PUBLIC SCHOOLS | B127: 126 | Z127: 134 | AC127: 203535.25 | AD127: 134 | AE127: 2 | AH127: 134 | AI127: 3 | AL127: 134 | AM127: 4 | AT127: 134 | AU127: 6 | AW127: 0 | BF127: 134 | BG127: 9
A128: SUFFOLK CITY PUBLIC SCHOOLS | B128: 127 | Z128: 135 | AA128: 1 | AB128: Yes | AC128: 582345.29 | AD128: 135 | AE128: 2 | AF128: Yes | AH128: 135 | AI128: 3 | AJ128: Yes | AL128: 135 | AM128: 4 | AN128: Yes | AO128: 93799.53 | AT128: 135 | AU128: 6 | AV128: Yes | AW128: 0 | BF128: 135 | BG128: 9 | BH128: Yes | BI128: 22726.02
A129: SURRY COUNTY PUBLIC SCHOOLS | B129: 90 | Z129: 136 | AA129: 1 | AB129: No | AC129: 5736458.19 | AD129: 136 | AE129: 2 | AF129: No | AH129: 136 | AI129: 3 | AJ129: No | AL129: 136 | AM129: 4 | AN129: No | AO129: 1146606.13 | AT129: 136 | AU129: 6 | AV129: No | AW129: 88638.01 | BF129: 136 | BG129: 9 | BH129: No
A130: SUSSEX COUNTY PUBLIC SCHOOLS | B130: 91 | Z130: 137 | AA130: 1 | AB130: No | AC130: 45424.18 | AD130: 137 | AE130: 2 | AF130: No | AH130: 137 | AI130: 3 | AJ130: No | AL130: 137 | AM130: 4 | AN130: No | AO130: 22988.75 | AT130: 137 | AU130: 6 | AV130: No | AW130: 0 | BF130: 137 | BG130: 9 | BH130: No
A131: TAZEWELL COUNTY PUBLIC SCHOOLS | B131: 92 | Z131: 138 | AC131: 408279.26 | AD131: 138 | AE131: 2 | AH131: 138 | AI131: 3 | AL131: 138 | AM131: 4 | AT131: 138 | AU131: 6 | AW131: 0 | BF131: 138 | BG131: 9
A132: VA BEACH CITY PUBLIC SCHOOLS | B132: 128 | Z132: 139 | AA132: 1 | AB132: Yes | AC132: 426422.45 | AD132: 139 | AE132: 2 | AF132: Yes | AH132: 139 | AI132: 3 | AJ132: Yes | AL132: 139 | AM132: 4 | AN132: Yes | AO132: 110906.44 | AT132: 139 | AU132: 6 | AV132: Yes | AW132: 0 | BF132: 139 | BG132: 9 | BH132: Yes
A133: VA DEPT OF CORRECTIONAL EDUCATION | B133: 900 | Z133: 140 | AA133: 1 | AC133: 248360.28 | AD133: 140 | AE133: 2 | AH133: 140 | AI133: 3 | AL133: 140 | AM133: 4 | AT133: 140 | AU133: 6 | AW133: 0 | BF133: 140 | BG133: 9
A134: VIRGINIA COMMONWEALTH UNIVERSITY | B134: 881 | Z134: 142 | AB134: Yes | AC134: 103300.01 | AD134: 142 | AE134: 2 | AF134: Yes | AH134: 142 | AI134: 3 | AJ134: Yes | AL134: 142 | AM134: 4 | AN134: Yes | AO134: 42657.15 | AT134: 142 | AU134: 6 | AV134: Yes | AW134: 0 | BF134: 142 | BG134: 9 | BH134: Yes
A135: VSDB HAMPTON | B135: 219 | Z135: 143 | AA135: 1 | AB135: Yes | AC135: 1224558.32 | AD135: 143 | AE135: 2 | AF135: Yes | AH135: 143 | AI135: 3 | AJ135: Yes | AL135: 143 | AM135: 4 | AN135: Yes | AO135: 151662.18 | AT135: 143 | AU135: 6 | AV135: Yes | AW135: 281441.41 | BF135: 143 | BG135: 9 | BH135: Yes
A136: VSDB STAUNTON | B136: 218 | Z136: 144 | AA136: 1 | AB136: Yes | AC136: 339650.44 | AD136: 144 | AE136: 2 | AF136: Yes | AH136: 144 | AI136: 3 | AJ136: Yes | AL136: 144 | AM136: 4 | AN136: Yes | AO136: 57416.91 | AT136: 144 | AU136: 6 | AV136: Yes | AW136: 134014.42 | BF136: 144 | BG136: 9 | BH136: Yes
A137: WARREN COUNTY PUBLIC SCHOOLS | B137: 93 | Z137: 202 | AA137: 1 | AB137: Yes | AC137: 270941.82 | AD137: 202 | AE137: 2 | AF137: Yes | AH137: 202 | AI137: 3 | AJ137: Yes | AL137: 202 | AM137: 4 | AN137: Yes | AO137: 24497.49 | AT137: 202 | AU137: 6 | AV137: Yes | AW137: 0 | BF137: 202 | BG137: 9 | BH137: Yes | BI137: 11454.09
A138: WASHINGTON COUNTY PUBLIC SCHOOLS | B138: 94 | Z138: 207 | AA138: 1 | AB138: Yes | AC138: 61153.61 | AD138: 207 | AE138: 2 | AF138: Yes | AH138: 207 | AI138: 3 | AJ138: Yes | AL138: 207 | AM138: 4 | AN138: Yes | AO138: 15968.96 | AT138: 207 | AU138: 6 | AV138: Yes | AW138: 0 | BF138: 207 | BG138: 9 | BH138: Yes
A139: WAYNESBORO CITY PUBLIC SCHOOLS | B139: 130 | Z139: 218 | AA139: 1 | AB139: No | AC139: 88380.54 | AD139: 218 | AE139: 2 | AF139: No | AH139: 218 | AI139: 3 | AJ139: No | AL139: 218 | AM139: 4 | AN139: No | AO139: 18161.31 | AT139: 218 | AU139: 6 | AV139: No | AW139: 0 | BF139: 218 | BG139: 9 | BH139: No
A140: WEST POINT TOWN PUBLIC SCHOOLS | B140: 207 | Z140: 219 | AD140: 219 | AE140: 2 | AH140: 219 | AI140: 3 | AL140: 219 | AM140: 4 | AT140: 219 | AU140: 6 | AW140: 0 | BF140: 219 | BG140: 9
A141: WESTMORELAND COUNTY PUBLIC SCHOOLS | B141: 95 | Z141: 871 | AD141: 871 | AE141: 2 | AG141: 151714.47 | AH141: 871 | AI141: 3 | AL141: 871 | AM141: 4 | AT141: 871 | AU141: 6 | AW141: 0 | BF141: 871 | BG141: 9
A142: WILLIAMSBURG CITY PUBLIC SCHOOLS | B142: 131 | Z142: 917 | AD142: 917 | AE142: 2 | AH142: 917 | AI142: 3 | AL142: 917 | AM142: 4 | AT142: 917 | AU142: 6 | AW142: 1367.16 | BF142: 900 | BG142: 9
A143: WINCHESTER CITY PUBLIC SCHOOLS | B143: 132
A144: WISE COUNTY PUBLIC SCHOOLS | B144: 96 | AC144: 216737360.7 | AG144: 776748.67 | AK144: 1107013.45 | AO144: 38258742.92 | AW144: =SUM(AW3:AW143) -> 11837680.54 | BA144: 0 | BI144: 1952272.8
A145: WOODROW WILSON REHABILITATION CTR | B145: 947
A146: WYTHE COUNTY PUBLIC SCHOOLS | B146: 97
A147: YORK COUNTY PUBLIC SCHOOLS | B147: 98 | BI147: 0
Y149: 1
Y150: 2
Y151: 3
Y152: 4
Y153: 5
Y154: 6
Y155: 7
Y156: 8
Y157: 9
Y158: 10
Y159: 11
Y160: 12
Y161: 13
Y162: 14
Y163: 15
Y164: 16
Y165: 17
Y166: 18
Y167: 19
Y168: 20
Y169: 21
Y170: 22
Y171: 23
Y172: 24
Y173: 25
Y174: 26
Y175: 27
Y176: 28
Y177: 29
Y178: 30
Y179: 31
Y180: 32
Y181: 33
Y182: 34
Y183: 35
Y184: 36
Y185: 37
Y186: 38
Y187: 39
Y188: 40
Y189: 41
Y190: 42
Y191: 43
Y192: 44
Y193: 45
Y194: 46
Y195: 47
Y196: 48
Y197: 49
Y198: 50
Y199: 51
Y200: 52
Y201: 53
... 87 more rows

Sheet Transferability
E1: School Division: | G1: ='Title III Budget'!$A$15 -> ALBEMARLE COUNTY PUBLIC SCHOOLS | N1: Division Number: | R1: ='Title III Budget'!$I$15 -> 2
A2: D. TRANSFERABILITY
A4: Section 5103(b)(2) of ESSA allows divisions to transfer all or a portion of the funds received from Title II, Part A, or Title IV, Part A, into: Title I, Part A; Title I, Part C; Title I, Part D; Title II, Part A; Title III, Part A; Title IV, Part A; or Title V, Part B.
A6: Complete the tab below if funds will be transferred under Section 5103(b)(2). Please note that prior approval is required to transfer funds. The transfer request form is provided at
A7: http://www.doe.virginia.gov/federal_programs/esea/forms/lea_funds_transfer_request.docx.
D9: Amount Budgeted
D10: Title I, Part A | F10: Title I, Part C | H10: Title I, Part D | J10: Title II, Part A | L10: Title III, Part A | P10: Title IV, Part A | Q10: Title V, Part B
L11: EL | N11: IY
D12: Title II, Part A, Transferability | E12: Title IV, Part A, Transferability | F12: Title II, Part A, Transferability | G12: Title IV, Part A, Transferability | H12: Title II, Part A, Transferability | I12: Title IV, Part A, Transferability | J12: Title IV, Part A, Transferability | L12: Title II, Part A, Transferability Award S367A180044 Project Code APE60016 | M12: Title IV, Part A, Transferability Award S424A180048 Project Code APE60023 | N12: Title II, Part A, Transferability Award S367A180044 Project Code APE60016 | O12: Title IV, Part A, Transferability Award S424A180048 Project Code APE60023 | P12: Title II, Part A, Transferability | Q12: Title II, Part A, Transferability | R12: Title IV, Part A, Transferability
A13: Amount Transferred to Program | L13: =SUM('Title III Budget'!L58:M59) -> 0 | M13: =SUM('Title III Budget'!L64:M65) -> 0 | N13: ='Title III Budget'!L60 -> 0 | O13: ='Title III Budget'!L66 -> 0
A14: OBJECT CODE - EXPENDITURE TYPE
A15: 1000 - Personal Services
A16: Administration | L16: 0 | M16: 0 | N16: 0 | O16: 0
A17: Teachers | L17: 0 | M17: 0 | N17: 0 | O17: 0
A18: Paraprofessionals | L18: 0 | M18: 0 | N18: 0 | O18: 0
A19: Teacher Incentives
A20: Focus Schools, if applicable
A21: Other Title I Schools in Improvement, if applicable
A22: Private School Set-Aside | L22: 0 | M22: 0 | N22: 0 | O22: 0
A23: Parent and Family Engagement | L23: 0 | M23: 0 | N23: 0 | O23: 0
A24: Professional Development | L24: 0 | M24: 0 | N24: 0 | O24: 0
A25: Value of professional development personnel-related services or stipends on behalf of private schools | L25: 0 | M25: 0 | N25: 0 | O25: 0
A26: Other | L26: 0 | M26: 0 | N26: 0 | O26: 0
A27: Total Personal Services | L27: =SUM(L16:L26) -> 0 | M27: =SUM(M16:M26) -> 0 | N27: =SUM(N16:N26) -> 0 | O27: =SUM(O16:O26) -> 0
A28: 2000 - Employee Benefits
A29: Fixed Charges (Administrative and Instruction) | L29: 0 | M29: 0 | N29: 0 | O29: 0
A30: Teacher Incentives
A31: Fixed Charges (Focus Schools, if applicable)
A32: Other Title I Schools in Improvement, if applicable
A33: Private School Set-Aside | L33: 0 | M33: 0 | N33: 0 | O33: 0
A34: Fixed Charges (Parent and Family Engagement) | L34: 0 | M34: 0 | N34: 0 | O34: 0
A35: Fixed Charges (Professional Development) | L35: 0 | M35: 0 | N35: 0 | O35: 0
A36: Value of professional development personnel-related benefits on behalf of private schools | L36: 0 | M36: 0 | N36: 0 | O36: 0
A37: Total Employee Benefits | L37: =SUM(L29:L36) -> 0 | M37: =SUM(M29:M36) -> 0 | N37: =SUM(N29:N36) -> 0 | O37: =SUM(O29:O36) -> 0
A38: 3000 - Purchased/Contracted Services
A39: Supportive Services (Med., Dental)
A40: Evaluation Services | L40: 0 | M40: 0 | N40: 0 | O40: 0
A41: Priority Schools, if applicable
A42: Focus Schools, if applicable
A43: Parent and Family Engagement | L43: 0 | M43: 0 | N43: 0 | O43: 0
A44: Other Title I Schools in Improvement, if applicable
A45: Private School Set-Aside | L45: 0 | M45: 0 | N45: 0 | O45: 0
A46: Professional Development | L46: 0 | M46: 0 | N46: 0 | O46: 0
A47: Teacher Quality (i.e., assessments; recruitment) | L47: 0 | M47: 0 | N47: 0 | O47: 0
A48: Tutoring Services | L48: 0 | M48: 0 | N48: 0 | O48: 0
A49: Other | L49: 0 | M49: 0 | N49: 0 | O49: 0
A50: Total Purchased/Contracted Services | L50: =SUM(L39:L49) -> 0 | M50: =SUM(M39:M49) -> 0 | N50: =SUM(N39:N49) -> 0 | O50: =SUM(O39:O49) -> 0
A51: 4000 - Internal Services
A52: Public School Choice Transportation | L52: 0 | M52: 0 | N52: 0 | O52: 0
A53: Pupil Transportation | L53: 0 | M53: 0 | N53: 0 | O53: 0
A54: Food Services | L54: 0 | M54: 0 | N54: 0 | O54: 0
A55: Priority Schools, if applicable
A56: Focus Schools, if applicable
A57: Other Title I Schools in Improvement, if applicable
A58: Private School Set-Aside | L58: 0 | M58: 0 | N58: 0 | O58: 0
A59: Professional Development | L59: 0 | M59: 0 | N59: 0 | O59: 0
A60: Parent and Family Engagement | L60: 0 | M60: 0 | N60: 0 | O60: 0
A61: Other | L61: 0 | M61: 0 | N61: 0 | O61: 0
A62: Total Internal Services | L62: =SUM(L52:L61) -> 0 | M62: =SUM(M52:M61) -> 0 | N62: =SUM(N52:N61) -> 0 | O62: =SUM(O52:O61) -> 0
A63: 5000 - Other Charges
A64: Travel (Staff/Administrative) | L64: 0 | M64: 0 | N64: 0 | O64: 0
A65: Maintenance/Operation of Plant
A66: Indirect Cost | L66: 0 | M66: 0 | N66: 0 | O66: 0
A67: Priority Schools, if applicable
A68: Focus Schools, if applicable
A69: Other Title I Schools in Improvement, if applicable
A70: Private School Set-Aside | L70: 0 | M70: 0 | N70: 0 | O70: 0
A71: Professional Development | L71: 0 | M71: 0 | N71: 0 | O71: 0
A72: Parent and Family Engagement | L72: 0 | M72: 0 | N72: 0 | O72: 0
A73: Other | L73: 0 | M73: 0 | N73: 0 | O73: 0
A74: Total Other Charges | L74: =SUM(L64:L73) -> 0 | M74: =SUM(M64:M73) -> 0 | N74: =SUM(N64:N73) -> 0 | O74: =SUM(O64:O73) -> 0
A75: 6000 - Materials and Supplies
A76: Administrative | L76: 0 | M76: 0 | N76: 0 | O76: 0
A77: Instructional | L77: 0 | M77: 0 | N77: 0 | O77: 0
A78: Priority Schools, if applicable
A79: Focus Schools, if applicable
A80: Other Title I Schools in Improvement, if applicable
A81: Private School Set-Aside | L81: 0 | M81: 0 | N81: 0 | O81: 0
A82: Professional Development | L82: 0 | M82: 0 | N82: 0 | O82: 0
A83: Parent and Family Engagement | L83: 0 | M83: 0 | N83: 0 | O83: 0
A84: Other | L84: 0 | M84: 0 | N84: 0 | O84: 0
A85: Total Materials and Supplies | L85: =SUM(L76:L84) -> 0 | M85: =SUM(M76:M84) -> 0 | N85: =SUM(N76:N84) -> 0 | O85: =SUM(O76:O84) -> 0
A86: 8000 - Capital Outlay
A87: Equipment for Instruction | L87: 0 | M87: 0 | N87: 0 | O87: 0
A88: Buildings
A89: Remodeling
A90: Professional Development | L90: 0 | M90: 0 | N90: 0 | O90: 0
A91: Parent and Family Engagement | L91: 0 | M91: 0 | N91: 0 | O91: 0
A92: All Other Equipment | L92: 0 | M92: 0 | N92: 0 | O92: 0
A93: Total Capital Outlay | L93: =SUM(L87:L92) -> 0 | M93: =SUM(M87:M92) -> 0 | N93: =SUM(N87:N92) -> 0 | O93: =SUM(O87:O92) -> 0
A94: TOTAL BUDGET | L94: =SUM(L27,L37,L50,L62,L74,L85,L93) -> 0 | M94: =SUM(M27,M37,M50,M62,M74,M85,M93) -> 0 | N94: =SUM(N27,N37,N50,N62,N74,N85,N93) -> 0 | O94: =SUM(O27,O37,O50,O62,O74,O85,O93) -> 0
A95: TOTAL PRIVATE SCHOOL SET-ASIDE | L95: =SUM(L22+L33+L45+L58+L81) -> 0 | M95: =SUM(M22+M33+M45+M58+M81) -> 0 | N95: =SUM(N22+N33+N45+N58+N81) -> 0 | O95: =SUM(O22+O33+O45+O58+O81) -> 0
A96: Does Budget Match Amount Transferred to Program? | L96: =IF(L94=L13,"Yes","No") -> Yes | M96: =IF(M94=M13,"Yes","No") -> Yes | N96: =IF(N94=N13,"Yes","No") -> Yes | O96: =IF(O94=O13,"Yes","No") -> Yes
A103: Page 17
E104: School Division: | G104: ='Title III Budget'!A15 -> ALBEMARLE COUNTY PUBLIC SCHOOLS | M104: Division Number: | P104: ='Title III Budget'!I15 -> 2
A105: DETAILED BUDGET BREAKDOWN
A106: Include a detailed breakdown of the budget categories for Object Codes 1000-6000 and 8000, as shown on pages 16-17.
A107: DETAILED BUDGET DESCRIPTION OF OBJECT CODE 1000
A108: If applicable, indicate the positions and FTEs supported with funds from this program.
A111: Item Description | I111: Funding Source | L111: FTEs | N111: Total Cost
I121: Total for Object Code: | L121: =SUM(L112:M120) -> 0 | N121: =SUM(N112:P120) -> 0
A124: DETAILED BUDGET DESCRIPTION OF OBJECT CODE 2000
A125: Indicate the fixed charge categories (such as FICA, health, etc.) and specify the amount of each.
A128: Item Description | K128: Funding Source | N128: Total Cost
K137: Total for Object Code: | N137: =SUM(N129:P136) -> 0
A138: Page 18
E139: School Division: | G139: ='Title III Budget'!A15 -> ALBEMARLE COUNTY PUBLIC SCHOOLS | M139: Division Number: | P139: ='Title III Budget'!I15 -> 2
A140: JUSTIFICATION FOR PROFESSIONAL DEVELOPMENT - OBJECT CODE 3000
A141: If program funds are expended for professional development, justify such expenditures by demonstrating a relationship between the proposed expenditure for professional development and the program services and activities described in the application. Please indicate how these funds will support any services and activities that are described in this application.
A144: Item Description | K144: Funding Source | N144: Total Cost
K153: Total for Object Code: | N153: =SUM(N145:P152) -> 0
A156: DETAILED BUDGET DESCRIPTION OF OBJECT CODE 3000
A157: Provide a description of evaluation services or other expenses related to purchased or contracted services that are not related to the professional development detailed above.
A160: Item Description | K160: Funding Source | N160: Total Cost
K169: Total for Object Code: | N169: =SUM(N161:P168) -> 0
A170: Page 19
E171: School Division: | G171: ='Title III Budget'!A15:G15 -> 0 | M171: Division Number: | P171: ='Title III Budget'!I15 -> 2
A172: JUSTIFICATION FOR INTERNAL SERVICES - OBJECT CODE 4000
A173: If program funds are expended for internal services, describe these services below.
A176: Item Description | K176: Funding Source | N176: Total Cost
K183: Total for Object Code: | N183: =SUM(N177:P182) -> 0
A186: JUSTIFICATION FOR TRAVEL COSTS - OBJECT CODE 5000
A187: Travel must be justified by demonstrating a relationship between the proposed travel and the needs of the program. Please indicate the estimated cost and the estimated number of people attending.
A190: Item Description | K190: Funding Source | N190: Total Cost
K202: Total for Object Code: | N202: =SUM(N191:P201) -> 0
A203: Page 20
E204: School Division: | G204: ='Title III Budget'!A15 -> ALBEMARLE COUNTY PUBLIC SCHOOLS | M204: Division Number: | P204: ='Title III Budget'!I15 -> 2
A205: DETAILED BUDGET DESCRIPTION FOR OBJECT CODE 5000
A206: If applicable, indicate indirect costs charged to this program. Indirect costs cannot be claimed against capital outlay and equipment.
A209: Item Description | K209: Funding Source | N209: Total Cost
K218: Total for Object Code: | N218: =SUM(N210:P217) -> 0
A221: JUSTIFICATION FOR MATERIALS AND SUPPLIES - OBJECT CODE 6000
A222: Provide a description of materials, supplies, and all equipment less $5,000 per unit. Indicate the estimated quantity of each item.
A225: Item Description | I225: Funding Source | L225: Quantities | N225: Total Cost
I242: Total for Object Code: | L242: =SUM(L226:M241) -> 0 | N242: =SUM(N226:P241) -> 0
A244: Page 21
E245: School Division: | G245: ='Title III Budget'!A15 -> ALBEMARLE COUNTY PUBLIC SCHOOLS | M245: Division Number: | P245: ='Title III Budget'!I15 -> 2
A246: JUSTIFICATION FOR CAPITAL OUTLAY - OBJECT CODE 8000
A247: All capital outlay expenditures over $5,000 per unit must be approved in advance by the Department of Education. If the school division has established a threshold of a lesser amount, items equal to that amount or greater must also receive prior approval by the Department of Education. Equipment quantities must be specified.
A250: Item Description | I250: Funding Source | L250: Quantities | N250: Total Cost
I261: Total for Object Code: | L261: =SUM(L251:M260) -> 0 | N261: =SUM(N251:P260) -> 0
A264: DETAILED BUDGET DESCRIPTION FOR OBJECT CODE 8000
A265: Provide a description for expenses related to object code 8000 not included in the justification above.
A268: Item Description | I268: Funding Source | L268: Quantities | N268: Total Cost
I279: Total for Object Code: | L279: =SUM(L269:M278) -> 0 | N279: =SUM(N269:P278) -> 0
A281: Page 22

Sheet Title III Program
E1: School Division: | G1: ='Title III Budget'!$A$15 -> ALBEMARLE COUNTY PUBLIC SCHOOLS | M1: Division Number: | P1: ='Title III Budget'!$I$15 -> 2
A2: E. PROGRAM OVERVIEW
A4: Section 3116 of the ESEA, as amended by ESSA, requires each subgrantee accepting Title III funds to submit a local plan that describes how Title III funds will be used to provide supplemental services to improve the English language proficiency and academic achievement of ELs. This includes the provision of language instruction educational programs (LIEPs) and activities that increase the knowledge and skills of teachers who serve ELs. All services provided to ELs using Title III funds must supplement, and not supplant, the services that must be provided to ELs under Title VI of the Civil Rights Act of 1964 (Title VI), the Equal Educational Opportunities Act of 1974 (EEOA), and other requirements, including those under State or local laws.
A5: Instruction Programs and Services for ELs and their Families
A6: Narrative Boxes:
A7: Box 1: Academic Support -- Describe how the division provides ELs with meaningful and equitable access to academic support as required under Title VI of the Civil Rights Act of 1964. Describe the training that divisions have offered to ensure that teachers providing core instruction to ELs can work effectively with this population so that these students have meaningful and equal access to the same curriculum as all students.
A8: The English as a Second or Other Language (ESOL) Program recognizes the rich cultural, economic, and intellectual resources our multilingual students bring to the community. We welcome the county's linguistically diverse students and ensure their academic, civic, and economic success with a rigorous curriculum and pedagogy. In 2018-2019, the ESOL program will build upon past years' trainings by offering in-house professional development, such as
A9: Sheltered Instruction Observation Protocol (SIOP) and our own version of What's Different About Teaching Reading to Students Learning English?, for teams of ESOL teachers and their collaborative partners. We will support our teachers' attendance by providing substitutes. Additionally, ESOL teachers will participate in quarterly professional development as a team that helps them provide targeted language lessions to ELs which focus on specific skills sets identified through our teacher-
A10: created Albemarle County Public Schools (ACPS) ESOL Curriculum, as well as coach their content area colleagues by providing instructional scaffolds and content differentiation to support students' linguistic growth throughout the day. Last, but not least, we are collaboratively developing a professional development workshop and protocols on supporting dually identified English Learners (ELs) with the Special Education department.
A11: In addition, the ESOL program supports an ESOL Coach who works with classroom teachers in the schools with emergent multilingual students. The coach supports teachers in adapting instruction to meet the language development needs of students even as they continue to support them in meeting high standards for content understanding.
A12: Our ESOL Family Engagement Liaison works as a member of the Family Engagement Encouragement Development (FEED) team and collaboratively offers professional development for teachers on best practices in family engagement, understanding the social and emotional needs of newly arrived students, co-hosts workshops for parents, and consults with teachers in their planning of events.
A17: Page 23
E18: School Division: | G18: ='Title III Budget'!$A$15 -> ALBEMARLE COUNTY PUBLIC SCHOOLS | M18: Division Number: | P18: ='Title III Budget'!$I$15 -> 2
A19: E. PROGRAM OVERVIEW (CONTINUED)
A20: Box 2: Language Instruction Educational Program (LIEP) -- Describe how effective Language Instruction Educational Programs and services are implemented to ensure that ELs develop English proficiency as required under the Lau v. Nichols Supreme Court Decision of 1972. Include information about how the division ensures that language instruction programs and services for ELs are sufficiently staffed with qualified personnel. Describe the training that divisions have offered teachers providing an effective Language Instruction Educational Program (LIEP).
A21: Students in the Albemarle County Public Schools' ESOL program receive appropriate instruction so that they can become fully proficient in English and meet the same challenging academic content and student achievement standards that all children are expected to meet. In addition to the core programs below, the ESOL Department offers supplementary support in the form of summer school and after-school tutoring. Our Instructional Guidelines and Staffing provide a baseline for designing programming for ACPS ELs. We also consider the number of ELs on a teacher's caseload and their English language proficiency levels.
A22: With 33 full-time ESOL teaching positions for approximately 1000 students, ACPS far exceeds the state's minimum Standards of Quality (SOQ) for ESOL teacher staffing, with an ESOL teacher to EL student ratio of 31:1. The school division ensures that all of our teachers have the state's endorsement in ESL.
A23: ACPS does not subscribe to a single-instructional model as no one approach is appropriate for all ELs. ESOL teachers respond to students’ needs by: 1. providing dedicated language-acquisition instruction 2. implementing research-based practices for interactive instruction; 3. providing targeted feedback and empowering students to self-monitor their learning; 4. customizing educational plans for students; 5. advocating for language and content objectives to be explicitly included in ELs’ daily lessons; and 6. scaffolding instruction so that students are taught challenging content with high standards.
A24: The following models/strategies are implemented with ELs, with most students receiving a combination of two or more of these services during their time in the program: 1. Two-Way Immersion: Cale Elementary offers this program for Spanish-speaking ESOL students. Students spend half of their day learning in English and half learning in Spanish in classes that are comprised with half native English speakers and half native Spanish speakers. 2. Pull-out Instruction: Students are pulled from the regular classroom to spend dedicated time with an ESOL teacher in a small
A25: group. This instruction is typically reserved for students at Levels 1 and 2 of English language proficiency and focuses on social as well as academic language development. 3. ESOL Collaboration/Push-in Instruction: ESOL teachers collaborate with classroom teachers to support differentiated instruction for English Learners that focuses on academic language development. ESOL teachers may help in modifying lessons, providing effective strategies, teaching language lessons, and providing modified instruction during a rotation when students work in small groups.
A26: 4. Clustering of students based on English proficiency and grade level 5. Supplemental support for recently-arrived ELs: While we believe that the Tier I classroom is the best place for our recently arrived ELs to learn language because of the immersive, literacy-rich environment and time with English-speaking peers their age, we know that these students need extra scaffolds and support to make their transition to school in the U.S. easier for them.
A27: 6. Differentiated Instruction in the Mainstream Classroom: The regular classroom teacher, with support through professional development and coaching by the ESOL teacher, differentiates instruction to develop both language and content simultaneously among ESOL students in the regular classroom setting. 7. “Formerly EL”: These students do not receive direct instruction from an ESOL teacher. However an ESOL teacher, supplemented by the ESOL Office, monitors and supports students’ academic progress as needed.
A29: Page 24
E30: School Division: | G30: ='Title III Budget'!$A$15 -> ALBEMARLE COUNTY PUBLIC SCHOOLS | M30: Division Number: | P30: ='Title III Budget'!$I$15 -> 2
A31: E. PROGRAM OVERVIEW (CONTINUED)
A32: Box 3: Title III Progress in Achieving English Language Proficiency
A33: ESOL teachers monitor each EL’s social and academic language progress, and adjust support to meet changing needs and ensure that students advance in linguistic development as quickly as possible. The ACPS ESOL Curriculum was collaboratively developed by ACPS teachers and was adapted from the Ontario Curriculum for ESL, the WIDA English Language Development (ELD) Standards, the Virginia Standards of Learning, and ACPS’ Lifelong-Learner Competencies​.
A34: ACPS has outlined quarterly benchmarks for ELs, based on the WIDA English Language Development (ELD) Standards and Can Do Descriptors. These are interpreted based on the number of years ELs have received academic instruction in English. ESOL teachers and content/classroom teachers strive to help their ELs meet the benchmarks by setting quarterly learning goals in the four language domains of listening, speaking, reading, and writing. The goals are individualized based on ELs’ English languages proficiency levels and drawn from the WIDA Can Do Descriptors and our teacher-created ESOL Language Goals. ELs’ progress is reported to families each quarter via the ESOL Report Cards.
A42: Page 25
E43: School Division: | G43: ='Title III Budget'!$A$15 -> ALBEMARLE COUNTY PUBLIC SCHOOLS | M43: Division Number: | P43: ='Title III Budget'!$I$15 -> 2
A44: E. PROGRAM OVERVIEW (CONTINUED)
A45: Box 4: Parent, Family, & Community Engagement – Describe how the division provides and implements effective activities and strategies to enhance limited English proficient (LEP) parent, family, and community engagement activities.
A46: Albemarle County recognizes that a key to ensuring improved partnerships between immigrant families and schools is breaking down the barrier of language. To this end, we have developed a division-wide system of interpretation and translation services. Each year, the ESOL program vets and hires a cadre of interpreters from the community who represent the linguistic diversity of Albemarle County. From former ACPS students to current ACPS parents, our trained interpreters and translators bring the rich linguistic resources of our families to support better communication in our schools and ensure that all of our parent events strive for language justice.
A47: For a combination of daily and emergency situations, the county uses a phone-based interpreting service that allows for just-in-time interpretation. For large parent events, we use simultaneous interpretation equipment that allows for one interpreter to meet the needs of up to 50 parents. Four years ago, the ESOL program led a local budget initiative to secure recurring local funding to schools for multilingual communication. We have seen significant increases in parent engagement among our linguistically diverse families – a valuable first step in ensuring the cultural resources of our community support the learning of all students in our schools.
A48: Supplemental to this, Title III funds for the ESOL Family Engagement Liaison and family events will support several programs to develop stronger partnerships among families, schools, and the community in Albemarle County. The Liaison will design and implement an Family Literacy course for families of ELs from schools with large populations of ELs that traditionally have struggled to engage parents in school-based activities. In this course, parents will learn intermediate English using a curriculum that facilitates school engagement through activities such as practicing meeting with teachers, writing letters to the school, and supporting children in learning activities, while children receive mentoring and support from volunteers.
A49: The Liaison will also collaborate with other division staff involved in Family Engagement through the FEED (Family Engagement Encouragement Development)Team which is a workgroup made up of Title I, Bright Stars Preschool, Community Engagement and SEAD (Social Emotional Academic Development) Team staff, to ensure that ESOL families’ needs are considered in all division Family Engagement initiatives. Currently, the FEED Team is developing training and a “toolkit” of Family Engagement resources for teachers, that focus on inclusive communication, design, and delivery. The Liaison will also help connect families experiencing crises to local organizations for support.
A50: Last but not least, the Liaison will guide teachers in their planning of family engagement events.
A54: Page 26
E55: School Division: | G55: ='Title III Budget'!$A$15 -> ALBEMARLE COUNTY PUBLIC SCHOOLS | M55: Division Number: | P55: ='Title III Budget'!$I$15 -> 2
A56: E. PROGRAM OVERVIEW (CONTINUED)
A57: Box 5: Title III Funding -- Describe how the division will expend Title III funds to provide supplemental academic support and Language Instruction Educational Programs (LIEPs) and services as described in Narrative Boxes 1 and 2. Specifically address how the proposed expenditure of Title III funds meets the Title III supplement, not supplant, requirements.
A58: Title III funds are used to fund personnel activities that supplement the core instructional programs under the district's Lau Plan and its adherence to Title I and III provisions. Screening, placement, and core instruction of EL students are provided for by local funding. The staff of the ACPS International & ESOL Welcome Center uses the WIDA-ACCESS Placement Test (W-APT) and WIDA Screener in order to determine whether or not students qualify for ESOL services, per Superintendent’s Memo #194-17.
A59: Additionally, the placement process includes writing samples and Math placement tests, intake reports, and international transcript evaluations. Local funds are also used for EL student participation in state assessments required by Title III of ESSA, including the WIDA ACCESS for ELLs 2.0 assessment of English proficiency. Title III funds are used to advance professional development for ESOL and content teachers, analysis of student data, provide supplemental programs to engage the community and families in the education of EL children, and to provide supplemental educational programs and materials for EL students such as tutoring and summer programming.
A60: Title III funds support before-school, after-school, and summer tutoring that take place above and beyond other programs for which the student may be eligible. The ESOL Specialist analyzes data to inform staffing and instruction, target parent engagement activities, determine needs for new materials, enhance existing programs, and other activities that involve shifting resources to meet student needs.
A61: In addition, we house archival data on EL students and compile this data into reports for administrators and teachers to inform their instruction and build new programs. ESOL family engagement activities are specific to the needs of ESOL families, and are constructed especially for those families.
A66: Page 27
E67: School Division: | G67: ='Title III Budget'!$A$15 -> ALBEMARLE COUNTY PUBLIC SCHOOLS | M67: Division Number: | P67: ='Title III Budget'!$I$15 -> 2
A68: E. PROGRAM OVERVIEW (CONTINUED)
A69: Program Evaluation
A70: Box 6: Evaluation -- Describe the process for evaluating the effectiveness of division Language Instruction Educational Programs (LIEPs) to ensure that ELs are acquiring English proficiency and exiting services. Information about the following topics should be included: 1. Participating stakeholders 2. Data analysis procedures 3. Implementation of program modifications as appropriate 4. Timeline for implementation of program modifications
A71: During each school year, the Albemarle County Public Schools (ACPS) International & English for Speakers of Other Languages (ESOL) Department engages in a continuous improvement cycle in which we review our current state, compare that to our desired state, and adjust our actions, programs, and plans to continue providing the learning opportunities that we expect our students to experience in every school.
A72: The International & ESOL Strategic Planning process is ongoing and intentional. We keep a finger on the pulse of our program through: 1. classroom walkthroughs with school administrators; 2. conversations with English Learners (ELs) during ESOL classes; 3. periodic review of ESOL teacher lesson plans; 4. interactions with educational partners at family and community engagement events or in our office; and 5. teacher discussions during Professional Learning Communities
A73: (PLCs) and Professional Development (PD) workshops. Additionally, we analyze quantitative data at key times during the year through the following - 1. Quarterly ESOL Report Cards and/or Report Cards in Parent Portal: once a semester, we look for struggling ELs in need of supplemental support by running our “Low Grade Report” in PowerSchool.
A74: 2. Standards of Learning (SOL) content area exam results: during the summer, we compare overall school averages with ELs’ pass rates. 3. ESOL Benchmarks: on a quarterly basis, we compare ELs’ English language proficiency levels to our ESOL Benchmarks in order to determine expected linguistic growth and needed supports.
A75: 4. WIDA ACCESS for ELLs 2.0 English language proficiency exam results: in June, we include an analysis for any new long-term ELs in order to plan appropriate supplemental support. ESOL teachers use the WIDA Score Reports to confer with classroom teachers about student progress and proficiency.
A76: 5. Exit Surveys: in May and June, we conduct Exit Surveys and in-person interviews with ESOL teachers in order to gage program effectiveness and direction. Survey questions center on instruction, expectations, and culture. 6. State of the Division: we have an ESOL Program page under the "Engage Every Student" heading. When ELs do not make the expected linguistic growth, based on the afore-mentioned progress monitoring tools, we initiate interventions that may include
A77: PLC work, school-based intervention team collaboration, supplemental tutoring, and PD offerings for targeted instructional strategies. We also collaborate with local university partners for support. We use the Title III application process to formally synthesize and summarize all qualitative and quantitative data in order to make programmatic decisions for the upcoming academic year.
A78: This continuous process is important to each student, teacher, and family. It is the goal of ACPS that ALL students will graduate having actively mastered the lifelong-learning skills they need to succeed as 21st century learners, workers, and citizens.
A79: Page 28
E80: School Division: | G80: ='Title III Budget'!$A$15 -> ALBEMARLE COUNTY PUBLIC SCHOOLS | M80: Division Number: | P80: ='Title III Budget'!$I$15 -> 2
A81: F. COORDINATION OF SERVICES
A82: Describe the partnership within your division between this program and other local, state and/or federal programs in the delivery of services to the targeted population(s). Describe the collaboration of program staff, parents, and the community to provide services and activities that will contribute to the attainment of the measurable objectives in this application.
A83: Albemarle County’s ESOL Program has consistently maintained close ties with all the Federal Programs (Migrant, Homeless, Title I, Title III) as well as Adult Education, Special Education, core content coordinators (known as the Lead Coach team), and the Equity and Diversity Committee. The Federal Program Coordinators meet monthly to share and collaboratively problem-solve. A coordinated consultation system ensures that Title I and Title III collectively articulate goals to ensure appropriate placement of and service to EL students. Many adult clients of the Migrant Education program and those who attend ESOL Adult Education classes have children in our schools. In addition to programs for parents of EL students, Adult ESOL programs
A84: are also held three evenings a week at a high school. At another county school venue, where ESOL clients are predominantly Latino, parents and children meet twice a week with University student volunteers. The parents individually work on English, citizenship, GED and driver’s license preparation, while children receive homework help and mentoring. The ESOL Coordinator/Lead Coach and staff collaborate with special education directors to collaboratively problem-solve and support students, teachers, and schools in a coordinated manner. Additionally, we support child study and referral teams to both involve parents and learn about the particular issues surrounding ELs and their families.
A85: Based on trends noticed across schools, we are collaboratively revising a professional development workshop on supporting dually-identified ELs that will be delivered in the 2018-2019 school year. The ESOL staff and teachers work with teams of teachers and administrators across content areas, gifted education, career and technology education (CTE), counseling, attendance, discipline, and social service referrals in order to ensure equitable access and support for students and their families.
A86: English Learners (ELs) who need additional support are monitored by a team of teachers, including the ESOL teacher, through the Response to Instruction/Intervention (RTI) process. When students still are not making desired progress, an ESOL staff member may be called in to the SBIT (School-Based Intervention Team) process to ensure that targeted instructional and socio-emotional interventions are put in place and progress monitoring occurs. ESOL staff members lend expertise to the SBIT team regarding student progress towards meeting benchmarks across the four language domains and provide crucial information to the team regarding student educational and language development history, both in English and the student’s first language.
A87: In addition to the student information gathered in the “Student Intake Report” during the initial school registration at the ACPS International Welcome Center, a more in depth parent/student interview is conducted by ESOL Family Engagement staff when needed. A dual language assessment may be administered by an ESOL staff member to determine a student’s dominant language and reading levels in both English and Spanish. ESOL staff provide advocacy for the parents during both the SBIT meeting process and the process of eligibility determination for special education services. Supplementary tutoring interventions are also provided through the ESOL tutoring program.
A88: The ESOL Office collaborates with UVA ESOL endorsement programs for placement of student teachers, the IRC for placement of refugee students in our schools, as well as the new Social Emotional Academic Development (SEAD) Team and Community Engagement Teams within ACPS.
A89: The Family Engagement Liaison partners with the FEED Team, University of Virginia (UVA) Madison House Volunteers, the Department of Social Services and Region 10, The Women’s Initiative, Creciendo Juntos and Sin Barreras (Latino advisory groups), Boys & Girls Club, the UVA Latino Student Alliance, as well as various recreation programs and camps such as SOCA (soccer league). ESOL Family Engagement staff provide support for referrals arising from the RTI/SBIT process, including in school supports such as Therapeutic Day Treatment, and community medical and mental health supports.
A91: Page 29
E92: School Division: | G92: ='Title III Budget'!$A$15 -> ALBEMARLE COUNTY PUBLIC SCHOOLS | M92: Division Number: | P92: ='Title III Budget'!$I$15 -> 2
A93: G. MEASURABLE OBJECTIVES
B94: Note: Measurable objectives should be quantitative and aimed at supporting the mastery of K-12 college- and career-ready standards, proficiency on corresponding state assessments, properly endorsed teachers, professional development, parental involvement, and other allowable objectives as defined under ESEA program areas and identified through local needs assessments. During the period of transition from ESEA to ESSA, measurable objectives do not need to address the AMO targets previously approved as part of Virginia's ESEA flexibility agreement.
A95: Measurable Objective 1:
A96: In the spring of 2019, 58% of ELs taking the reading SOL will score at the proficient level, thus reducing the opportunity gap between ELs and all students in the division by at least 5%.
A98: Effective research-based instruction and other supports will be implemented with requested funds so that ELs can achieve English language proficiency and perform academically at the same high levels as their non-EL peers.
A99: For our younger ELs, ACPS will focus ESOL language support and professional development on developing a strong vocabulary and background knowledge, phonemic awareness, phonics, concepts of print and sight words, as these capacities are most important for language acquisition for young ELS (Dickinson & Snow, 1987; Dickinson & Tabors, 2001; Snow & Tabors, 1993; Whitehurst & Lonigan, 1998). For our adolescent ELs, we will target students struggling with reading early in their program of studies and provide supplemental support through the Response to Intervention (RTI) process. For all students, we will provide professional development to classroom teachers in how to incorporate vocabulary acquisition and utilize scaffolding strategies to improve comprehension throughout the curriculum.
A100: Page 30
E101: School Division: | G101: ='Title III Budget'!$A$15 -> ALBEMARLE COUNTY PUBLIC SCHOOLS | M101: Division Number: | P101: ='Title III Budget'!$I$15 -> 2
A102: G. MEASURABLE OBJECTIVES (CONTINUED)
A103: Measurable Objective 2:
A104: In the spring of 2019, 65% of ELs taking the mathematics SOL will score at the proficient level, thus reducing the opportunity gap between ELs and all students in the division by at least 5%.
A106: Effective research-based instruction and other supports will be implemented with requested funds so that ELs can achieve English language proficiency and perform academically at the same high levels as their non-EL peers.
A107: We will continue using ExC-ELL and SIOP strategies to support teachers in the incorporation of language development into math lessons. We will continue to expand our use of number talks and other language-rich math strategies to support ELs’ greater comprehension of the language of mathematics.
A109: Measurable Objective 3:
A110: In the spring of 2019, the percentage of ELs graduating on time will continue to exceed the federal graduation indicator (FGI).
A112: Effective research-based instruction and other supports will be implemented with requested funds so that ELs can achieve English language proficiency and perform academically at the same high levels as their non-EL peers.
A113: Our secondary program will continue creating clear graduation plans with students. ESOL teachers will work closely with students and their families through the school counseling departments, to create a graduation and post-secondary plan. ESOL teachers will collaborate with content teachers as well as community organizations to connect students' academic work to their goals outside of school. Students who are struggling to meet graduation requirements will be identified early so that additional support, including supplemental learning opportunities after school and during the summer, can be provided in a timely manner. We will seek to enroll more ELs in honors, advanced placement, dual enrollment and other challenging courses to ensure equitable opportunities for a rigorous, language-rich curriculum.
A114: Page 31
E115: School Division: | G115: ='Title III Budget'!$A$15 -> ALBEMARLE COUNTY PUBLIC SCHOOLS | M115: Division Number: | P115: ='Title III Budget'!$I$15 -> 2
A116: G. MEASURABLE OBJECTIVES (CONTINUED)
A117: Measurable Objective 4:
A118: By the end of 2018-2019, 20% of ELs will demonstrate progress in acquiring English language proficiency as demonstrated\ by moving from one English Language Proficiency (ELP) level to the next on the WIDA ACCESS for ELLs 2.0 assessment.
A120: Effective research-based instruction and other supports will be implemented with requested funds so that ELs can achieve English language proficiency and perform academically at the same high levels as their non-EL peers.
A121: Teachers progress monitor their ELs by using the ACPS ESOL Benchmarks. They strive to help their ELs meet these benchmarks by setting quarterly learning goals in the four language domains of listening, speaking, reading, and writing. The goals are individualized based on ELs’ English languages proficiency levels, and drawn from the WIDA Can Do Descriptors and our teacher-created ESOL Language Goals. Students who are struggling to meet benchmarks will be identified early so that additional support, including supplemental learning opportunities after school and during the summer, can be provided in a timely manner.
A123: Measurable Objective 5:
A124: By the end of 2018-2019, 75% of our Level 4 ELs will attain proficiency and therefore exit the ESOL program by earning a composite score of 4.4 or above on the WIDA ACCESS for ELLs 2.0 assessment.
A126: Effective research-based instruction and other supports will be implemented with requested funds so that ELs can achieve English language proficiency and perform academically at the same high levels as their non-EL peers.
A127: Data analysis by the ESOL Office will identify students across the division who are making little progress after attaining an English language proficiency level of 3.0 and higher. We will use this analysis to target instruction and shift resources to support students who are struggling to reach full proficiency in English. We will focus on supporting content area teachers to build language objectives into their lessons to advance the English Language Proficiency of higher-level ELs. We will continue to leverage the RTI process and collaborative ESOL/Classroom teacher partnerships to support higher level ELs who have been in the program longer than expected and are not making sufficient progress toward full proficiency.
A129: Page 32
E130: School Division: | G130: ='Title III Budget'!$A$15 -> ALBEMARLE COUNTY PUBLIC SCHOOLS | M130: Division Number: | P130: ='Title III Budget'!$I$15 -> 2
A131: H. TITLE III PROGRAM DETAILS
A133: Types of Service Programs
A134: Indicate with an X the service program used by your school division or consortium members. If multiple programs are used, please report each program. For program definitions, please go to the following link:
A135: https://www2.ed.gov/rschstat/eval/title-iii/language-instruction-ed-programs-report.pdf
A136: Dual Language
A137: Two-way immersion | N137: X
A138: Transitional bilingual
A139: Developmental bilingual
A140: Heritage language
A141: Sheltered English instruction | N141: X
A142: Structured English immersion
A143: Specially designed academic instruction delivered in English (SDAIE) | N143: X
A144: Content-based ESL | N144: X
A145: Pull-out ESL | N145: X
A146: Other (Explain) | C146: Push-in/Collaboration support | N146: X
A147: Professional Development Activities
A149: Indicate the number of professional development activities your school division or consortium members plan to conduct with Title III funds and/or Immigrant Children and Youth (IY) funds.
N150: Per PD Event
A151: Instructional strategies for ELs | N151: 4
A152: Understanding and implementation of assessment of ELs | N152: 2
A153: Understanding and implementation ELD standards and academic content standards for ELs | N153: 2
A154: Alignment of the curriculum in language instruction educational programs to ELD standards | N154: 2
A155: Subject matter knowledge for teachers | N155: n/a
A156: Participant Information
A158: Indicate the estimated number of teachers, administrators, and other personnel who will participate in each type of professional development activity to be funded by Title III by putting the total number of participants in the corresponding box. Do not use X's instead of numbers.
A159: Professional development provided to content or classroom teachers (Number of content or classroom teachers receiving professional development) | N159: 150
A160: Professional development provided to EL classroom teachers (Number of content or classroom teachers receiving professional development) | N160: 27
A161: Professional development provided to principals (Number of principals receiving professional development) | N161: 2
A162: Professional development provided to administrators/other than principals (Number of administrators/other than principals receiving professional development) | N162: 2
A163: Professional development provided to other school personnel/non-administrative staff (Number of other school personnel/non-administrative staff receiving professional development) | N163: 1
A164: Professional development provided to community-based organizational personnel (Number of community-based organizational personnel receiving professional development) | N164: 1
A166: Page 33
E167: School Division: | G167: ='Title III Budget'!$A$15 -> ALBEMARLE COUNTY PUBLIC SCHOOLS | M167: Division Number: | P167: ='Title III Budget'!$I$15 -> 2
A168: I. TITLE III CONSORTIUM AGREEMENT
A170: According to Title III, Part A, Sections 3111 and 3114, a state educational agency shall not award an EL formula subgrant if the amount of the subgrant is less than $10,000. However, the law permits school divisions to apply in consortium with one or more other school divisions to reach the $10,000 threshold. School divisions that meet this criterion and wish to apply for Title III EL formula subgrant in a consortium must identify a lead school division. The lead school division will be responsible for completing the application and serving as the fiscal agent. One (1) application should be submitted per consortium. One (1) certification should be submitted by each participating school division to the lead school division. The Department will consider consortium memberships finalized by July 1. Requests to join or exit a consortium will not be accepted after July 1.
A171: Lead Consortium School Division
A172: Name of Lead | L172: School Division
A173: School Division: | C173: ='Title III Budget'!A15 -> ALBEMARLE COUNTY PUBLIC SCHOOLS | L173: Number: | N173: ='Title III Budget'!I15 -> 2
A175: Typed Name of Superintendent:
A176: Signature of Superintendent: | M176: Date:
A178: Typed name of contact for Title III consortium if different than superintendent:
A179: Title III Contact:
A181: Title:
A183: Mailing Address:
A185: City, State, Zip:
A187: Telephone: | F187: E-mail: | M187: Fax:
A190: LIST OF PARTICIPATING SCHOOL DIVISIONS
A191: The following school divisions have applied to participate in this consortium. The EL formula subgrant award corresponds to the 2018-2019 EL formula subgrant allocation
B192: Please check to assure that signed copies of participating consortium member certification pages for all member divisions are on file with the lead school division.
A194: Name of School Division | G194: Division Number | I194: EL Subgrant Award Amount
A195: 1.
A196: 2.
A197: 3.
A198: 4.
A199: 5.
A200: 6.
A201: 7.
A202: 8.
A203: 9.
A204: 10.
A205: 11.
A206: 12.
A207: Total | I207: =SUM(I195:K206) -> 0
A208: Page 34

Sheet IY
E1: School Division: | G1: ='Title III Budget'!$A$15 -> ALBEMARLE COUNTY PUBLIC SCHOOLS | M1: Division Number: | P1: ='Title III Budget'!$I$15 -> 2
A2: J. Immigrant Children and Youth (IY) Funds under Title III
A4: Complete if IY funds are allocated
A6: Purpose of Immigrant Children and Youth (IY) Funds
A8: Under Section 3114 of the ESEA, Immigrant Children and Youth (IY) funds may be used for supplemental services to improve the academic achievement of IY students including activities that increase the knowledge and skills of teachers who serve IY students. All services provided to IY students using IY funds must supplement, and not supplant, the services that must be provided to IY students under Title VI of the Civil Rights Act of 1964 (Title VI), the Equal Educational Opportunities Act of 1974 (EEOA), and other requirements, including those under State or local laws. Immigrant Children and Youth (IY) funds must solely be expended on programs and services for immigrant students or their families.
A10: Description of Program and Services for Immigrant Students
A12: Describe how the division will use Immigrant Children and Youth (IY) funds to provide enhanced instructional opportunities specifically for immigrant students or their families:
A13: Albemarle County Public Schools will use immigrant and youth subgrant funds to offer extended day and summer educational programs of the highest quality targeted to refugee and immigrant students new to our community. These students often face great challenges to meeting graduation requirements, yet also bring deep resources to support our community when their potential is fully realized. Notably, students will participate in a “Summer Immersion Excursion” program, which provides
A14: experiential learning opportunities related to history, science, and nature, by visiting places such as Bellair Farm, Walnut Creek Park, the University of Virginia, Montpelier, and the Frontier Culture Museum. These excursions will help close the opportunity gap for students by helping them develop background knowledge and build vocabulary in topics that are embedded within content curriculum. As newcomer students engage in school culture and climate, they will gain
A15: understanding of school expectations and integrate into their academic and social school community. A planning team will collaboratively set the curricular goals for the program as well as collaborate with the departments of transportation and nutrition to secure transportation, breakfast, and lunch for participating students. Part-time family engagement workers will help facilitate communication and partnership with families. The resulting deep understanding from these experiences in
A16: in school and the community will allow students to develop communication skills and social ties that will help them better integrate into their home school communities. As a result of the extended day and summer experiences, these students will have more success academically and socially. In order to allow immigrant students to graduate on time, we are offering ELs a unique opportunity to take US/VA Government through the summer ACPS Virtual Learning summer school. (cont'd below)
A17: Describe how the division will evaluate the success of the enhanced instructional opportunities targeting immigrant students or their families:
A18: (continuation) This online class is aligned to the same standards and at the same level of rigor as traditional classroom offerings. However, an ESOL teacher will collaborate with the content area teacher in order to provide supplemental support. Together, the two will differentiate content and provide the linguistic support necessary for student success. Additionally, transportation and snacks are provided for ESOL students to allow access to this targeted instruction. Without
A19: Without transportation, food, and in-person ESOL-teacher support, our immigrant students would not be able to access this online-only opportunity.
A20: EVALUATION: We will evaluate the success of these extended day and summer programs in a variety of ways. First, we will conduct instructional walk-throughs and observations of the extended day and summer experiences to determine that teachers are implementing best practices, including but not limited to the ExC-ELL strategies. Secondly, we will look at student progress on Albemarle County Benchmarks in Reading and Mathematics, WIDA ACCESS, and Standards of Learning
A21: assessments, as appropriate. Ultimately, we evaluate the success of all secondary interventions through analysis of graduation rates and post-secondary successes.
A22: Page 35

Sheet Private Schools
E1: School Division: | G1: ='Title III Budget'!$A$15 -> ALBEMARLE COUNTY PUBLIC SCHOOLS | W1: Division Number: | Z1: ='Title III Budget'!$I$15 -> 2
A2: K. PRIVATE SCHOOL PARTICIPATION
A4: Each year, the school division must contact all eligible private (nonprofit) schools and engage in meaningful consultation on the availability of equitable services funded by Title III, Part A. (ESEA Title VIII Uniform Provisions, Part F, Subpart 1).
A5: 1. Are there eligible private schools in the school division's attendance area?
C6: X | D6: Yes (If yes, complete the remainder of this page.) | M6: No (If no, it is not necessary to complete the rest of this page.)
A8: 2. Place an "X" in the appropriate block(s) to indicate how private schools were notified of the availability of equitable services funded by Title III, Part A. (Copies of the notification must be kept on file for monitoring purposes.)
C10: Regular Mail | J10: X | K10: Certified Mail
C12: Telephone Calls | K12: Meetings
C14: Visits to the Private School | K14: Other (Please specify)
A16: 3. What is the number of English Learners receiving services in the public school division for the 2018-2019 school year
A18: 4. Determining Set-Asides (These fields will calculate automatically once enrollment figures have been entered.)
B19: a. Title III Budget | L19: =SUM('Title III Budget'!G140:J140) -> 106525.11
B20: b. Proportionate Share | L20: =(L19)*(H67/(R16+H67)) -> 
B21: c. Additional set-aside for equitable services (if necessary)
B22: d. Amount to use for set-aside calculations | L22: =SUM(L20+L21) -> 
A24: 5. Determining additional set-asides as a result of Transferability. These fields will calculate automatically once budget and enrollment figures have been entered.
B25: a. Title III Budget | L25: =SUM(Transferability!L13:O13) -> 0
B26: b. Proportionate Share | L26: =(L25)*(H67/(R16+H67)) -> 
A29: 6. For the 2018-2019 award year, enter the estimated private school-set aside (Cell R67) onto the Summary Budget Tab under the “Budget for 2018-2019” column in the appropriate object codes on the “Private School Set-Aside” lines. On the Budget Detail pages, list the amounts in the appropriate object codes in the “Private School Set-Aside for 2017-2018” lines.
A31: 7. Complete the chart below: • In Column A, list all eligible private schools in the school division. • In column B, indicate the participation status of the listed private school(s) for the 2018-2019 award year, as a result of consultation. • In Column C, enter number of English learner students in private schools participating in services for the 2018-2019 award year. • In Column D, enter the description of services provided for participating children. • Columns E and F will automatically calculate the value of services for the 2018-2019 award year.
A33: A | F33: B | H33: C | J33: D | R33: E | T33: F
A34: Private Schools | F34: Participation Status for 2018-2019 award year? (Yes/No) | H34: Number of identified students | J34: Description of Services | R34: Estimated Value of Services from 2018-2019 Title IIIA budget, per school | T34: Estimated Value of additional services from Transferability funds
A35: Charlottesville Catholic School | F35: No | R35: =IF(F35="Yes",H35*H68,0) -> 0 | T35: =IF(F35="Yes",H35*H69,0) -> 0
A36: Charlottesville Waldorf School | F36: No | R36: =IF(F36="Yes",H36*H68,0) -> 0 | T36: =IF(F36="Yes",H36*H69,0) -> 0
A37: The Covenant School | F37: No | R37: =IF(F37="Yes",H37*H68,0) -> 0 | T37: =IF(F37="Yes",H37*H69,0) -> 0
A38: Free Union Country School | F38: No | R38: =IF(F38="Yes",H38*H68,0) -> 0 | T38: =IF(F38="Yes",H38*H69,0) -> 0
A39: Tandem Friends School | F39: No | R39: =IF(F39="Yes",H39*H68,0) -> 0 | T39: =IF(F39="Yes",H39*H69,0) -> 0
A40: University Montessori School | F40: Yes | H40: NA | J40: Not known until Fall of 2018 | R40: =IF(F40="Yes",H40*H68,0) ->  | T40: =IF(F40="Yes",H40*H69,0) -> 
A41: Mountaintop Montessori School | F41: No | R41: =IF(F41="Yes",H41*H68,0) -> 0 | T41: =IF(F41="Yes",H41*H69,0) -> 0
A42: St. Anne's Belfield School | F42: No | R42: =IF(F42="Yes",H42*H68,0) -> 0 | T42: =IF(F42="Yes",H42*H69,0) -> 0
A43: The Peabody School | F43: No | R43: =IF(F43="Yes",H43*H68,0) -> 0 | T43: =IF(F43="Yes",H43*H69,0) -> 0
A44: Miller School of Albemarle | F44: No | R44: =IF(F44="Yes",H44*H68,0) -> 0 | T44: =IF(F44="Yes",H44*H69,0) -> 0
A45: Field School of Charlottesville | F45: No | R45: =IF(F45="Yes",H45*H68,0) -> 0 | T45: =IF(F45="Yes",H45*H69,0) -> 0
A46: Community Christian Academy | F46: No | R46: =IF(F46="Yes",H46*H68,0) -> 0 | T46: =IF(F46="Yes",H46*H69,0) -> 0
A47: Little Keswick School | F47: No | R47: =IF(F47="Yes",H47*H68,0) -> 0 | T47: =IF(F47="Yes",H47*H69,0) -> 0
R48: =IF(F48="Yes",H48*H68,0) -> 0 | T48: =IF(F48="Yes",H48*H69,0) -> 0
R49: =IF(F49="Yes",H49*H68,0) -> 0 | T49: =IF(F49="Yes",H49*H69,0) -> 0
R50: =IF(F50="Yes",H50*H68,0) -> 0 | T50: =IF(F50="Yes",H50*H69,0) -> 0
R51: =IF(F51="Yes",H51*H68,0) -> 0 | T51: =IF(F51="Yes",H51*H69,0) -> 0
R52: =IF(F52="Yes",H52*H68,0) -> 0 | T52: =IF(F52="Yes",H52*H69,0) -> 0
R53: =IF(F53="Yes",H53*H68,0) -> 0 | T53: =IF(F53="Yes",H53*H69,0) -> 0
R54: =IF(F54="Yes",H54*H68,0) -> 0 | T54: =IF(F54="Yes",H54*H69,0) -> 0
R55: =IF(F55="Yes",H55*H68,0) -> 0 | T55: =IF(F55="Yes",H55*H69,0) -> 0
R56: =IF(F56="Yes",H56*H68,0) -> 0 | T56: =IF(F56="Yes",H56*H69,0) -> 0
R57: =IF(F57="Yes",H57*H68,0) -> 0 | T57: =IF(F57="Yes",H57*H69,0) -> 0
R58: =IF(F58="Yes",H58*H68,0) -> 0 | T58: =IF(F58="Yes",H58*H69,0) -> 0
R59: =IF(F59="Yes",H59*H68,0) -> 0 | T59: =IF(F59="Yes",H59*H69,0) -> 0
R60: =IF(F60="Yes",H60*H68,0) -> 0 | T60: =IF(F60="Yes",H60*H69,0) -> 0
R61: =IF(F61="Yes",H61*H68,0) -> 0 | T61: =IF(F61="Yes",H61*H69,0) -> 0
R62: =IF(F62="Yes",H62*H68,0) -> 0 | T62: =IF(F62="Yes",H62*H69,0) -> 0
R63: =IF(F63="Yes",H63*H68,0) -> 0 | T63: =IF(F63="Yes",H63*H69,0) -> 0
R64: =IF(F64="Yes",H64*H68,0) -> 0 | T64: =IF(F64="Yes",H64*H69,0) -> 0
R65: =IF(F65="Yes",H65*H68,0) -> 0 | T65: =IF(F65="Yes",H65*H69,0) -> 0
R66: =IF(F66="Yes",H66*H68,0) -> 0 | T66: =IF(F66="Yes",H66*H69,0) -> 0
A67: Total identified students | H67: =SUM(H35:I66) -> 0 | J67: Total Private school set-asides | R67: =SUM(R35:S66) ->  | T67: =SUM(T35:U66) -> 
A68: Per Pupil Expenditure (calculated field): | H68: =(L22/H67) ->  | R68: Use this figure for private school set-asides in 2018-2019 budget | T68: Use this figure for private school set-asides in 2018-2019 budget Transferability
A69: Per Pupil Expenditure for Transferability funds (calculated field): | H69: =(L26/H67) -> 
A71: Page 37

Sheet GEPA
D1: School Division: | G1: ='Title III Budget'!A15 -> ALBEMARLE COUNTY PUBLIC SCHOOLS | M1: Division Number: | P1: ='Title III Budget'!I15 -> 2
A2: L. GENERAL EDUCATION PROVISIONS ACT (GEPA) SECTION 427
A4: Section 427 of the General Education Provisions Act (GEPA) requires applicants for federal funds to include in their applications a description of the steps the applicant will take to ensure equitable access to, and participation in, federally-assisted programs for students, teachers, and other program beneficiaries with special needs. The provision allows applicants discretion in developing the required description. The statute highlights six types of barriers that can impede equitable access or participation: gender, race, national origin, color, disability, or age. Based on local circumstances, the applicant should determine whether these or other barriers may prevent students, teachers, etc., from such access or participation in the federally-funded project or activity. The description in the application of steps to be taken to overcome these barriers need not be lengthy; the application may provide a clear and succinct description of how the applicant plans to address those barriers that are applicable to their circumstances.
A6: Describe the steps the division will take to ensure equitable access to, and participation in, grant-funded programs for students, teachers, and other program beneficiaries with special needs as required by the General Education Provisions Act (GEPA) 427, OMB Control No. 1894-00045, Section 427.
A7: Albemarle County is committed to providing equitable access for students, teachers and families in all grant-funded programs and opportunities as required by GEPA 427: 1.Ensuring all events are held in handicapped accessible facilities in geographically convenient locations. Events are held during the day, evening, and on weekends to accommodate family school/work schedules in order to maximize participation. 2. Materias provided are accessible for literate and non-readers as well as in electronic and paper copy formats to inform families that may not have access to social media and email. This includes translation of documents into Spanish and other languages as needed. The ESOL Office annually vets, hires and trains additional interpreters and translators to ensure a high-level of quality with a personalized experience for families. Simultaneous interpretation equipment is used in large-group settings, and InterpreTalk Language
A8: Line services are used when necessary. 3.Albemarle County conducts a variety of outreach programs to address gender and/or race inequalities. Some of these include: Teacher summer reading project, Girls in STEM initiatives, Summer Immersion Excursion programs for newcomers, Camp Invention modules, CoderDojo, World Peace Game, and Saturday family engagement experiences to STEM fairs and other local attractions. 4.Efforts to involve diverse stakeholders in program planning and implementation are robust and include seventeen diverse teams. Advisory groups include Parent Council, Student Advisory, Special Education, Gifted, Title I, and Diversity and Equity. Last but certainly not least, the Title I, Title III, Migrant and Homeless Coordinators all meet monthly with the Director of Federal Programs to collaborate and ensure our students have equitable access to all division opportunities.
A9: Page 38

Sheet Sheet2 (hidden)
A1: EL Subgrant | C1: Title II, Part A, Transferability | E1: Yes
A2: IY Subgrant | C2: Title IV, Part A, Transferability | E2: No
